{"text_format":"1","workbook":"xlsx","n_sheets":5,"sheets":["Data Input","U.S. Office Using Employment","Business Summary","Executive Summary","Gap Analysis"],"not_rendered":{"charts":0,"images":0,"macros":1,"external_links":1,"defined_names":7,"comments":0,"pivot_tables":0},"unopened":[],"bounds":{"document_bytes":16777216,"sheet_cells":100000,"rows_first":2000,"rows_last":500,"rows_between":2000,"halvings":0,"cell_chars":16384,"cell_head_chars":4096},"cells_cut":0,"cells_raw":0,"read":"whole","date_system":"1900"}

{"sheet":"Data Input","index":0,"n_rows":21,"n_cols":8,"rows_kept":21,"cut":false,"hidden":false,"merged":[[5,1,5,2]]}
[]
[]
[null,"CCIM Office Gap Analysis",null,null,null,null,null,{"$f":"NOW()","v":"2021-08-16T11:03:13.290"}]
[]
[null,"Market Area",null,null,"Market Area Employment Sector","% Office Using",null,"# Office Employees"]
[null,"Plano-Allen Office Submarket",null,null,{"$f":"'U.S. Office Using Employment'!A326","v":"Wholesale trade"},{"$f":"'U.S. Office Using Employment'!F326","v":9.348504003371258E-2},null,{"$f":"F6*'Business Summary'!BT77","v":1179.3137800252841}]
[null,null,null,null,{"$f":"'U.S. Office Using Employment'!A389","v":"Retail trade"},{"$f":"'U.S. Office Using Employment'!F389","v":3.452578507999645E-2},null,{"$f":"F7*'Business Summary'!BT78","v":2270.6573073561267}]
[null,"Market Area Supply Data",null,null,{"$f":"'U.S. Office Using Employment'!A475","v":"Transportation and warehousing"},{"$f":"'U.S. Office Using Employment'!F475","v":0.15894769152989183},null,{"$f":"F8*'Business Summary'!BT91","v":507.36103136341472}]
[null,"Current Total Supply (RSF)",32958000,null,{"$f":"'U.S. Office Using Employment'!A529","v":"Information"},{"$f":"'U.S. Office Using Employment'!F529","v":0.79011420413989997},null,{"$f":"F9*'Business Summary'!BT92","v":15085.65049964311}]
[null,"Current Overall Vacancy Supply (RSF)",8878000,null,{"$f":"'U.S. Office Using Employment'!A557","v":"Finance and insurance"},{"$f":"'U.S. Office Using Employment'!F557","v":0.9922765896958019},null,{"$f":"F10*'Business Summary'!BT93","v":22109.906971601857}]
[null,"New Supply in Construction Pipeline (RSF)",409000,null,{"$f":"'U.S. Office Using Employment'!A599","v":"Real estate"},{"$f":"'U.S. Office Using Employment'!F599","v":0.95185712436909542},null,{"$f":"F11*'Business Summary'!BT97","v":13049.00931797593}]
[null,"Stabilized Vacancy Rate %",0.2,null,{"$f":"'U.S. Office Using Employment'!A625","v":"Professional and business services"},{"$f":"'U.S. Office Using Employment'!F625","v":0.95268277837826498},null,{"$f":"F12*'Business Summary'!BT98","v":31095.56588626657}]
[null,null,null,null,{"$f":"'U.S. Office Using Employment'!A677","v":"Management of companies and enterprises"},{"$f":"'U.S. Office Using Employment'!F677","v":1.0000415127236497},null,{"$f":"F13*'Business Summary'!BT100","v":699.02901739383117}]
[null,"Market Area Forecast Data",null,null,{"$f":"'U.S. Office Using Employment'!A681","v":"Administrative and support services"},{"$f":"'U.S. Office Using Employment'!F681","v":0.60245563569449445},null,{"$f":"F14*'Business Summary'!BT101","v":5668.5050762494984}]
[null,"Forecast Period (Months)",12,null,{"$f":"'U.S. Office Using Employment'!A728","v":"Educational services"},{"$f":"'U.S. Office Using Employment'!F728","v":6.2433806396949801E-2},null,{"$f":"F15*'Business Summary'!BT102","v":1760.3211713619996}]
[null,"Economic Base Multiplier [1]",6.48,null,{"$f":"'U.S. Office Using Employment'!A741","v":"Health care and social assistance"},{"$f":"'U.S. Office Using Employment'!F741","v":0.23438144431133023},null,{"$f":"F16*'Business Summary'!BT103","v":11015.459119743899}]
[null,"Forecast Annual Employment Growth Rate",{"$f":"RATE(60/12,0,-'Business Summary'!BT114,('Executive Summary'!W14/('Executive Summary'!W13/'Business Summary'!BT114)))","v":2.5517958783029513E-2},null,{"$f":"'U.S. Office Using Employment'!A845","v":"Other services"},{"$f":"'U.S. Office Using Employment'!F845","v":0.88892827004219399},null,{"$f":"F17*'Business Summary'!BT108","v":21441.838801687762}]
[null,"Forecast Basic Employment Change",{"$f":"('Business Summary'!BT114*(1+'Data Input'!C17)^('Data Input'!C15/12)*(1/C16))-('Business Summary'!BT114*(1/C16))","v":1509.1116050540295},null,{"$f":"'U.S. Office Using Employment'!A897","v":"Government"},{"$f":"'U.S. Office Using Employment'!F897","v":0.32686759288028761},null,{"$f":"F18*'Business Summary'!BT110","v":2466.5428558746503}]
[null,"Forecast Total Office Using Employment",{"$f":"((H19/'Business Summary'!BT114)*('Data Input'!C18*'Data Input'!C16))+H19","v":131624.36943260726},null,"Current Total Office Using Employment",{"$f":"H19/'Business Summary'!BT114","v":0.33492117059183429},null,{"$f":"SUM(H6:H18)","v":128349.16083654392}]
[]
[null,"[1] Use EBM Calcualtor Data Link Above to Determine EBM for Market Area (Chrome Internet Browser Works Best)"]

{"sheet":"U.S. Office Using Employment","index":1,"n_rows":924,"n_cols":6,"rows_kept":924,"cut":false,"hidden":true,"merged":[]}
["Office Using Employment Estimate (updated April 2019)"]
["Industry","NAICS Code","Total Employment x 1,000","Office Using? \"X\"=Yes","# of Office Workers","% of Office Workers"]
["Total nonfarm",null,151020]
[]
["Total private",null,128491]
[]
["Goods-producing",null,21070]
[]
["Mining and logging",null,756]
["Logging",1133,45.7]
["Mining",21,710.6]
["Oil and gas extraction",211,155.1]
["Mining, except oil and gas",212,195.5]
["Coal mining",2121,52.4]
["Bituminous coal and lignite surface mining(1)",212111,22.9]
["Bituminous coal underground mining and anthracite mining(1)","212112,3",29.6]
["Metal ore mining",2122,41.5]
["Nonmetallic mineral mining and quarrying",2123,101.7]
["Stone mining and quarrying(1)",21231,42.6]
["Crushed and broken limestone mining(1)",212312,22.2]
["Other stone mining and quarrying(1)","212311,3,9",20.399999999999999]
["Sand, gravel, clay, and refractory mining(1)",21232,46.9]
["Construction sand and gravel mining(1)",212321,31.1]
["Other nonmetallic mineral mining(1)",21239,12.3]
["Support activities for mining",213,360]
["Support activities for oil and gas operations(1)",213112,280.8]
[]
["Construction",23,7478]
["Construction of buildings",236,1650.6]
["Residential building",2361,829.3]
["New single-family general contractors",236115,371.3]
["New multifamily general contractors",236116,35.6]
["New housing operative builders",236117,41.2]
["Residential remodelers",236118,381.2]
["Nonresidential building",2362,821.3]
["Industrial building",23621,163.80000000000001]
["Commercial building",23622,657.5]
["Heavy and civil engineering construction",237,1088.0999999999999]
["Utility system construction(1)",2371,568.6]
["Water and sewer system construction(1)",23711,199]
["Oil and gas pipeline construction(1)",23712,179.3]
["Power and communication system construction(1)",23713,189.8]
["Land subdivision(1)",2372,39]
["Highway, street, and bridge construction(1)",2373,360.2]
["Other heavy construction(1)",2379,119.6]
["Specialty trade contractors",238,4739.6000000000004]
["Residential specialty trade contractors","part 238",2066]
["Nonresidential specialty trade contractors","part 238",2673.6]
["Building foundation and exterior contractors(1)",2381,921.1]
["Poured concrete structure contractors",23811,230.9]
["Steel and precast concrete contractors",23812,86.4]
["Framing contractors",23813,83.8]
["Masonry contractors",23814,145.30000000000001]
["Glass and glazing contractors",23815,69.900000000000006]
["Roofing contractors",23816,220.3]
["Siding contractors",23817,39.200000000000003]
["Other building exterior contractors",23819,47.6]
["Building equipment contractors(1)",2382,2254.1999999999998]
["Electrical contractors",23821,954.8]
["Plumbing and HVAC contractors",23822,1150.0999999999999]
["Other building equipment contractors",23829,148.69999999999999]
["Building finishing contractors(1)",2383,851]
["Drywall and insulation contractors",23831,260.89999999999998]
["Painting and wall covering contractors",23832,215.8]
["Flooring contractors",23833,82.9]
["Tile and terrazzo contractors",23834,59.4]
["Finish carpentry contractors",23835,153.80000000000001]
["Other building finishing contractors",23839,79.5]
["Other specialty trade contractors(1)",2389,711.4]
["Site preparation contractors",23891,353.6]
["All other specialty trade contractors",23899,356.9]
[]
["Manufacturing",null,12836]
[]
["Durable goods",null,8056]
["Wood products",321,410.2]
["Sawmills and wood preservation(1)",3211,93.7]
["Plywood and engineered wood products(1)",3212,80.8]
["Other wood products(1)",3219,235.6]
["Millwork(1)",32191,106.1]
["Wood windows and doors(1)",321911,52.1]
["Cut stock, resawing lumber, planing, and other millwork, including flooring(1)","321912,8",53.7]
["Wood containers and pallets(1)",32192,59.6]
["All other wood products(1)",32199,70.3]
["Nonmetallic mineral products",327,414.5]
["Clay products and refractories(1)",3271,39.6]
["Glass and glass products(1)",3272,85.5]
["Flat glass and other pressed and blown glass and glassware(1)","327211,2",24.6]
["Glass containers and products made of purchased glass(1)","327213,5",61]
["Cement and concrete products(1)",3273,191.8]
["Ready-mix concrete(1)",32732,98.1]
["Other cement and concrete products(1)","32731,3,9",94.1]
["Lime, gypsum, and other nonmetallic mineral products(1)","3274,9",97.6]
["Primary metals",331,381.7]
["Iron and steel mills and ferroalloy production(1)",3311,85.2]
["Steel products from purchased steel(1)",3312,58.8]
["Alumina and aluminum production(1)",3313,57.4]
["Other nonferrous metal production(1)",3314,60.4]
["Foundries(1)",3315,120.1]
["Ferrous metal foundries(1)",33151,63.6]
["Iron foundries(1)",331511,35.5]
["Nonferrous metal foundries(1)",33152,56.5]
["Fabricated metal products",332,1483.6]
["Forging and stamping(1)",3321,102.3]
["Cutlery and hand tools(1)",3322,35.6]
["Architectural and structural metals(1)",3323,391.6]
["Plate work and fabricated structural products(1)",33231,170.4]
["Fabricated structural metal products(1)",332312,88.2]
["Prefabricated metal buildings, components, and plate work(1)","332311,3",82.2]
["Ornamental and architectural metal products(1)",33232,221.2]
["Metal windows and doors(1)",332321,67]
["Sheet metal work(1)",332322,112.3]
["Ornamental and architectural metal work(1)",332323,42]
["Boilers, tanks, and shipping containers(1)",3324,93.7]
["Hardware, spring, and wire products(1)","3325,6",71.400000000000006]
["Machine shops and threaded products(1)",3327,363.3]
["Machine shops(1)",33271,286.89999999999998]
["Turned products and screws, nuts, and bolts(1)",33272,76.900000000000006]
["Precision turned products(1)",332721,38.9]
["Bolts, nuts, screws, rivets, and washers(1)",332722,37.799999999999997]
["Coating, engraving, and heat treating metals(1)",3328,143.1]
["Metal heat treating and coating and nonprecious engraving(1)","332811,2",82.3]
["Electroplating, anodizing, and coloring metals(1)",332813,60.9]
["Other fabricated metal products(1)",3329,282.60000000000002]
["Metal valves(1)",33291,91.4]
["Fluid power valves and hose fittings(1)",332912,37.700000000000003]
["All other metal valves(1)","332911,3,9",53.7]
["All other fabricated metal products(1)",33299,191.1]
["Small arms, ammunition, and other ordnance and accessories(1)","332992,3,4",46]
["Miscellaneous fabricated metal products and ball and roller bearings(1)","332991,6,9",144.69999999999999]
["Machinery",333,1139.5999999999999]
["Agricultural, construction, and mining machinery(1)",3331,226.6]
["Agricultural implements(1)",33311,77]
["Farm machinery and equipment(1)",333111,60.1]
["Construction machinery(1)",33312,71.8]
["Mining and oil and gas field machinery(1)",33313,77.400000000000006]
["Industrial machinery(1)",3332,119.7]
["Commercial and service industry machinery(1)",3333,96.7]
["HVAC and commercial refrigeration equipment(1)",3334,135.69999999999999]
["AC, refrigeration, and forced air heating(1)",333415,90.7]
["Metalworking machinery(1)",3335,179.6]
["Industrial molds(1)",333511,37]
["Special tools, dies, jigs, and fixtures(1)",333514,62.8]
["Machine tool manufacturing(1)",333517,40.700000000000003]
["Miscellaneous metalworking machinery(1)","333515,9",38.700000000000003]
["Turbine and power transmission equipment(1)",3336,101.4]
["Other general purpose machinery(1)",3339,279.5]
["Pumps and compressors(1)",33391,50.4]
["Material handling equipment(1)",33392,87.5]
["All other general purpose machinery(1)",33399,141.69999999999999]
["Computer and electronic products",334,1075.9000000000001]
["Computer and peripheral equipment",3341,159.5]
["Electronic computers(1)",334111,110.8]
["Computer storage devices, terminals, and other peripheral equipment(1)","334112,8",48.9]
["Communications equipment",3342,86.5]
["Telephone apparatus(1)",33421,16.3]
["Broadcast and wireless communications equipment(1)",33422,51.4]
["Semiconductors and electronic components",3344,375.4]
["Bare printed circuit boards(1)",334412,26.8]
["Semiconductors and related devices(1)",334413,183.7]
["Printed circuit assemblies(1)",334418,62.5]
["Electronic connectors and misc. electronic components(1)","334416,7,9",102.4]
["Electronic instruments",3345,421]
["Electromedical apparatus(1)",334510,71.5]
["Search, detection, and navigation instruments(1)",334511,130.6]
["Industrial process variable instruments(1)",334513,63.8]
["Electricity and signal testing instruments(1)",334515,38]
["Miscellaneous electronic instruments(1)","334512,4,6-9",117.1]
["Miscellaneous computer and electronic products","3343,6",33.4]
["Electrical equipment and appliances",335,402.8]
["Electric lighting equipment(1)",3351,50.5]
["Household appliances(1)",3352,60.5]
["Electrical equipment(1)",3353,146]
["Electric power and specialty transformers(1)",335311,29.2]
["Motors and generators, switchgears and switchboard apparatus, and relay and industrial controls(1)","335312,3,4",117]
["Other electrical equipment and components(1)",3359,145.6]
["Batteries(1)",33591,35.5]
["Wiring devices(1)",33593,46.8]
["All other electrical equipment and components(1)","33592,9",63.3]
["Transportation equipment",336,1737]
["Motor vehicles and parts(2)","3361,2,3",997]
["Motor vehicles(1)",3361,240]
["Automobiles and light trucks(1)",33611,207.4]
["Automobiles(1)",336111,137.6]
["Light trucks and utility vehicles(1)",336112,68.8]
["Heavy duty trucks(1)",33612,32.799999999999997]
["Motor vehicle bodies and trailers(1)",3362,165.7]
["Motor vehicle bodies(1)",336211,57.8]
["Truck trailers, motor homes, travel trailers, and campers(1)","336212,3,4",107.8]
["Motor vehicle parts(1)",3363,591.70000000000005]
["Motor vehicle gasoline engine and parts(1)",33631,61.8]
["Motor vehicle electric equipment(1)",33632,60.9]
["Motor vehicle steering and suspension parts(1)",33633,35]
["Motor vehicle brake systems(1)",33634,26]
["Motor vehicle power train components(1)",33635,81.3]
["Motor vehicle seating and interior trim(1)",33636,74.900000000000006]
["Motor vehicle metal stamping(1)",33637,88.6]
["All other motor vehicle parts(1)",33639,163.1]
["Aerospace products and parts(1)",3364,533.79999999999995]
["Aircraft(1)",336411,250.8]
["Aircraft engines and engine parts(1)",336412,87.5]
["Other aircraft parts and equipment(1)",336413,114.2]
["Guided missiles, space vehicles, and parts(1)","336414,5,9",81.8]
["Ship and boat building(1)",3366,145.9]
["Ship building and repairing(1)",336611,99.4]
["Boat building(1)",336612,46.4]
["Railroad rolling stock and other transportation equipment(1)","3365,9",61.4]
["Furniture and related products",337,394.9]
["Household and institutional furniture(1)",3371,251.2]
["Wood kitchen cabinets and countertops(1)",33711,122.2]
["Other household and institutional furniture(1)",33712,128.80000000000001]
["Upholstered household furniture(1)",337121,62.6]
["Nonupholstered wood household furniture(1)",337122,30.6]
["Miscellaneous household and institutional furniture(1)","337124,5,7",35.700000000000003]
["Office furniture and fixtures(1)",3372,108.3]
["Office furniture and custom architectural woodwork and millwork(1)","337211,2,4",64.7]
["Showcases, partitions, shelving, and lockers(1)",337215,43.8]
["Other furniture-related products(1)",3379,35.4]
["Miscellaneous durable goods manufacturing",339,615.4]
["Medical equipment and supplies(1)",3391,321.3]
["Surgical and medical instruments(1)",339112,129.80000000000001]
["Surgical appliances and supplies(1)",339113,106.3]
["Dental laboratories(1)",339116,45.4]
["Other miscellaneous durable goods manufacturing(1)",3399,293.89999999999998]
["Jewelry and silverware(1)",33991,22.8]
["Sporting and athletic goods(1)",33992,44.3]
["Signs(1)",33995,79.900000000000006]
["All other miscellaneous durable goods manufacturing(1)","33993,4,9",146.6]
[]
["Nondurable goods",null,4780]
["Food manufacturing",311,1636.4]
["Animal food(1)",3111,64.5]
["Grain and oilseed milling(1)",3112,59.5]
["Flour milling, malt, starch, and vegetable oil(1)","31121,2",47.5]
["Breakfast cereal(1)",31123,11.9]
["Sugar and confectionery products(1)",3113,77.400000000000006]
["Chocolate and confectionery manufacturing(1)",31135,43.8]
["Fruit and vegetable preserving and specialty(1)",3114,166.6]
["Frozen food(1)",31141,91.1]
["Frozen fruits and vegetables(1)",311411,33.1]
["Frozen specialty food(1)",311412,58.3]
["Fruit and vegetable canning and drying(1)",31142,74.5]
["Dairy products(1)",3115,150.4]
["Fluid milk(1)",311511,54.3]
["Animal slaughtering and processing(1)",3116,525.20000000000005]
["Animal, except poultry, slaughtering(1)",311611,144.6]
["Meat processed from carcasses, and rendering and meat byproduct processing(1)","311612,3",139.1]
["Poultry processing(1)",311615,241.2]
["Seafood product preparation and packaging(1)",3117,39.5]
["Bakeries and tortilla manufacturing(1)",3118,318.10000000000002]
["Bread and bakery products(1)",31181,242.6]
["Retail bakeries(1)",311811,88.4]
["Commercial bakeries and frozen cakes and other pastry products(1)","311812,3",154.19999999999999]
["Cookies, crackers, pasta, and tortillas(1)","31182,3",75.599999999999994]
["Other food products(1)",3119,236.1]
["Snack food(1)",31191,63.6]
["Miscellaneous food products(1)","31192,3,4,9",172.2]
["Textile mills",313,113.5]
["Fabric mills(1)",3132,54.5]
["Textile product mills",314,114.4]
["Textile furnishings mills(1)",3141,50.7]
["Other textile product mills(1)",3149,63.6]
["Textile bag and canvas mills(1)",31491,23.6]
["All other textile product mills(1)",31499,40.299999999999997]
["Apparel",315,107.9]
["Cut and sew apparel(1)",3152,86]
["Cut and sew apparel contractors(1)",31521,27.9]
["Cut and sew apparel, except contractors(1)","31522,4,8",58.2]
["All other apparel manufacturing(1)","3151,9",22]
["Paper and paper products",322,370.1]
["Pulp, paper, and paperboard mills(1)",3221,95.5]
["Pulp mills and paper mills(1)","32211,2",64.8]
["Paperboard mills(1)",32213,30.7]
["Converted paper products(1)",3222,274.60000000000002]
["Paperboard containers(1)",32221,151.9]
["Corrugated and solid fiber boxes(1)",322211,97]
["Folding boxes and miscellaneous paperboard containers(1)","322212,9",54.9]
["Paper bags and coated and treated paper(1)",32222,58.3]
["Stationery and other converted paper products(1)","32223,9",64.2]
["Printing and related support activities",323,421.1]
["Commercial printing, except screen(1)","323111,7",326.2]
["Petroleum and coal products",324,116.8]
["Petroleum refineries(1)",32411,71.400000000000006]
["Asphalt paving and roofing materials and other petroleum and coal products(1)","32412,9",45.5]
["Chemicals",325,857.3]
["Basic chemicals(1)",3251,157.4]
["Petrochemicals, industrial gases, synthetic dyes, and pigments(1)","32511,2,3",57.8]
["Other basic inorganic chemicals(1)",32518,40.700000000000003]
["Other basic organic chemicals(1)",32519,58.7]
["Resin, rubber, and artificial fibers(1)",3252,96.4]
["Plastics material and resin(1)",325211,62]
["Agricultural chemicals(1)",3253,36.1]
["Pharmaceuticals and medicines(1)",3254,300.5]
["Pharmaceutical preparations(1)",325412,203.1]
["Miscellaneous medicinal and biological products(1)","325411,3,4",97.3]
["Paints, coatings, and adhesives(1)",3255,66.7]
["Paints and coatings(1)",32551,42.7]
["Soaps, cleaning compounds, and toiletries(1)",3256,112]
["Soaps and cleaning compounds(1)",32561,55.1]
["Toilet preparations(1)",32562,56.7]
["Other chemical products and preparations(1)",3259,88]
["Plastics and rubber products",326,735.9]
["Plastics products(1)",3261,597.20000000000005]
["Plastics packaging materials, film, and sheet(1)",32611,96.7]
["Nonpackaging plastics film and sheet(1)",326113,40.6]
["Plastics pipe, fittings, and profile shapes(1)",32612,52.5]
["Foam products(1)","32614,5",70.599999999999994]
["Plastics bottles and laminated plastics plate, sheet, and shapes(1)","32613,6",53.8]
["Other plastics products(1)",32619,324.3]
["Rubber products(1)",3262,138.5]
["Tires(1)",32621,58.9]
["All other rubber products(1)","32622,9",79.599999999999994]
["Miscellaneous nondurable goods manufacturing","312,6",306.89999999999998]
["Beverages(1)",3121,266.7]
["Soft drinks and ice(1)",31211,98.5]
["Soft drinks(1)",312111,82.8]
["Breweries, wineries, and distilleries(1)","31212,3,4",169.3]
["Other miscellaneous nondurable goods manufacturing(1)","3122,60",39.1]
[]
["Service-providing",null,129950]
[]
["Private service-providing",null,107421]
[]
["Trade, transportation, and utilities",null,27811]
[]
["Wholesale trade",42,5932.5,null,{"$f":"IF(D326=\"x\",C326,0)","v":0},{"$f":"SUM(E326:E387)/C326","v":9.348504003371258E-2}]
["Durable goods",423,3211.9,null,0]
["Motor vehicles and parts(1)",4231,347.6,null,0]
["Motor vehicles(1)",42311,127,null,{"$f":"IF(D329=\"x\",C329,0)","v":0}]
["New motor vehicle parts(1)",42312,170.5,null,0]
["Furniture and furnishings(1)",4232,113.2,null,0]
["Furniture(1)",42321,49.5,null,0]
["Home furnishings(1)",42322,63.8,null,0]
["Lumber and construction supplies(1)",4233,248.3,null,0]
["Lumber and wood(1)",42331,114.4,null,0]
["Masonry materials(1)",42332,62.4,null,0]
["Roofing, siding, and other construction materials(1)","42333,9",71.400000000000006,null,0]
["Commercial equipment(1)",4234,701.5,null,0]
["Office equipment(1)",42342,82.5,null,0]
["Computer and software(1)",42343,234.5,null,0]
["Medical equipment(1)",42345,254,null,0]
["Miscellaneous professional and commercial equipment(1)","42341,4,6,9",130.1,null,0]
["Metals and minerals(1)",4235,138.19999999999999,null,0]
["Electric goods(1)",4236,358.4,null,0]
["Electrical equipment and wiring(1)",42361,178.9,null,0]
["Electric appliances and other electronic parts(1)","42362,9",179.5,null,0]
["Hardware and plumbing(1)",4237,285.3,null,0]
["Hardware(1)",42371,89.6,null,0]
["Plumbing equipment(1)",42372,109.8,null,0]
["HVAC and refrigeration equipment(1)","42373,4",85.6,null,0]
["Machinery and supplies(1)",4238,711.6,null,0]
["Construction equipment(1)",42381,92.1,null,0]
["Farm and garden equipment(1)",42382,99.2,null,0]
["Industrial machinery(1)",42383,331.9,null,0]
["Industrial supplies(1)",42384,95.1,null,0]
["Service establishment equipment(1)",42385,56.6,null,0]
["Other transportation goods(1)",42386,37.299999999999997,null,0]
["Miscellaneous durable goods(1)",4239,306.39999999999998,null,0]
["Sporting goods(1)",42391,56.9,null,0]
["Recyclable materials(1)",42393,107.9,null,0]
["Jewelry(1)",42394,38.799999999999997,null,0]
["Toy, hobby, and other durable goods(1)","42392,9",102.9,null,0]
["Nondurable goods",424,2166,null,0]
["Paper and paper products(1)",4241,129.9,null,0]
["Printing and writing paper and office supplies(1)","42411,2",64.7,null,0]
["Industrial paper(1)",42413,65.2,null,0]
["Druggists' goods(1)",4242,239.3,null,0]
["Apparel and piece goods(1)",4243,148.80000000000001,null,0]
["Women's and children's clothing(1)",42433,69.900000000000006,null,0]
["Grocery and related products(1)",4244,800.2,null,0]
["General line grocery(1)",42441,244.3,null,0]
["Fruits and vegetables(1)",42448,102.3,null,0]
["Farm product raw materials(1)",4245,71.2,null,0]
["Grains and field beans(1)",42451,44.8,null,0]
["Chemicals(1)",4246,150.80000000000001,null,0]
["Petroleum(1)",4247,98.8,null,0]
["Alcoholic beverages(1)",4248,200.1,null,0]
["Beer and ale(1)",42481,113.4,null,0]
["Wine and spirits(1)",42482,86.6,null,0]
["Misc. nondurable goods(1)",4249,326.10000000000002,null,0]
["Farm supplies(1)",42491,117.9,null,0]
["Books and periodicals(1)",42492,36.9,null,0]
["Nursery stock and florists' supplies(1)",42493,44.3,null,0]
["All other nondurable goods wholesalers(1)","42494,5,9",127.8,null,0]
["Electronic markets and agents and brokers",425,554.6,null,0]
["Business to business electronic markets(1)",42511,31.8,"x",31.8]
["Wholesale trade agents and brokers(1)",42512,522.79999999999995,"x",522.79999999999995]
[null,null,null,null,0]
["Retail trade",null,15788.2,null,0,{"$f":"SUM(E389:E474)/C389","v":3.452578507999645E-2}]
["Motor vehicle and parts dealers",441,2048.5,null,0]
["Automobile dealers",4411,1311.8,null,0]
["New car dealers(1)",44111,1143,null,0]
["Used car dealers(1)",44112,168.5,null,{"$f":"IF(D393=\"x\",C393,0)","v":0}]
["Other motor vehicle dealers",4412,160.9,null,0]
["Recreational vehicle dealers(1)",44121,48.9,null,0]
["Motorcycle, boat, and other vehicle dealers(1)",44122,111.7,null,0]
["Auto parts, accessories, and tire stores",4413,575.79999999999995,null,0]
["Automotive parts and accessories stores(1)",44131,381,null,0]
["Tire dealers(1)",44132,194.8,null,0]
["Furniture and home furnishings stores",442,487.3,null,0]
["Furniture stores(1)",4421,231,null,0]
["Home furnishings stores(1)",4422,256.3,null,0]
["Floor covering stores(1)",44221,72.400000000000006,null,0]
["Other home furnishings stores(1)",44229,183.9,null,0]
["Electronics and appliance stores",443,471.6,null,0]
["Household appliance stores(1)",443141,49.8,null,0]
["Electronics stores(1)",443142,422.2,null,0]
["Building material and garden supply stores",444,1301.0999999999999,null,0]
["Building material and supplies dealers(1)",4441,1138.8,null,0]
["Home centers(1)",44411,706.4,null,0]
["Paint and wallpaper stores(1)",44412,40.5,null,0]
["Hardware stores(1)",44413,157.19999999999999,null,0]
["Other building material dealers(1)",44419,235.1,null,0]
["Lawn and garden equipment and supplies stores(1)",4442,161.4,null,0]
["Outdoor power equipment stores(1)",44421,32.799999999999997,null,0]
["Nursery, garden, and farm supply stores(1)",44422,128.6,null,0]
["Food and beverage stores",445,3116.7,null,0]
["Grocery stores(1)",4451,2717.6,null,0]
["Supermarkets and other grocery stores(1)",44511,2549.1999999999998,null,0]
["Convenience stores(1)",44512,167.5,null,0]
["Specialty food stores(1)",4452,236.3,null,0]
["Meat markets and fish and seafood markets(1)","44521,2",71.5,null,0]
["Fruit and vegetable markets(1)",44523,36.9,null,0]
["Other specialty food stores(1)",44529,128,null,0]
["Beer, wine, and liquor stores(1)",4453,162.9,null,0]
["Health and personal care stores",446,1045.5999999999999,null,0]
["Pharmacies and drug stores(1)",44611,684,null,0]
["Cosmetic and beauty supply stores(1)",44612,177.5,null,0]
["Optical goods stores(1)",44613,73.3,null,0]
["Other health and personal care stores(1)",44619,111.3,null,0]
["Food (health) supplement stores(1)",446191,52.1,null,0]
["All other health and personal care stores(1)",446199,59.4,null,0]
["Gasoline stations",447,944.6,null,0]
["Gasoline stations with convenience stores(1)",44711,839.9,null,0]
["Other gasoline stations(1)",44719,104.2,null,0]
["Clothing and clothing accessories stores",448,1343.8,null,0]
["Clothing stores(1)",4481,1008.1,null,0]
["Men's clothing stores(1)",44811,49.9,null,0]
["Women's clothing stores(1)",44812,255.7,null,0]
["Children's and infants' clothing stores(1)",44813,55.3,null,0]
["Family clothing stores(1)",44814,467.1,null,0]
["Clothing accessories stores(1)",44815,57,null,0]
["Other clothing stores(1)",44819,123,null,0]
["Shoe stores(1)",4482,198.3,null,0]
["Jewelry, luggage, and leather goods stores(1)",4483,137.19999999999999,null,0]
["Sporting goods, hobby, book, and music stores",451,558.1,null,0]
["Sporting goods and musical instrument stores(1)",4511,483.7,null,0]
["Sporting goods stores(1)",45111,281.3,null,0]
["Hobby, toy, and game stores(1)",45112,131.1,null,0]
["Sewing, needlework, and piece goods stores(1)",45113,38.799999999999997,null,0]
["Musical instrument and supplies stores(1)",45114,29.8,null,0]
["Book stores and news dealers(1)",4512,74.400000000000006,null,0]
["General merchandise stores",452,3052.5,null,0]
["Department stores",4522,1122.5,null,0]
["General merchandise stores, including warehouse clubs and supercenters",4523,1930,null,0]
["Warehouse clubs and supercenters(1)",452311,1407.5,null,0]
["All other general merchandise stores(1)",452319,521.79999999999995,null,{"$f":"IF(D457=\"x\",C457,0)","v":0}]
["Miscellaneous store retailers",453,836.1,null,0]
["Florists(1)",4531,62,null,0]
["Office supplies, stationery, and gift stores(1)",4532,239.8,null,0]
["Office supplies and stationery stores(1)",45321,94.1,null,0]
["Gift, novelty, and souvenir stores(1)",45322,146,null,0]
["Used merchandise stores(1)",4533,177.3,null,0]
["Other miscellaneous store retailers(1)",4539,355.9,null,0]
["Pet and pet supplies stores(1)",45391,126.6,null,0]
["Art dealers(1)",45392,16.5,null,0]
["All other miscellaneous store retailers(1)","45393,9",212.8,null,0]
["Nonstore retailers",454,582.29999999999995,null,0]
["Electronic shopping and mail-order houses(1)",4541,404.7,"x",404.7]
["Vending machine operators(1)",4542,37.6,null,0]
["Direct selling establishments(1)",4543,140.4,"x",140.4]
["Fuel dealers(1)",45431,72.8,null,0]
["Other direct selling establishments(1)",45439,67.7,null,0]
[null,null,null,null,0]
["Transportation and warehousing",null,5538.3,null,0,{"$f":"SUM(E475:E528)/C475","v":0.15894769152989183}]
["Air transportation",481,513.9,null,0]
["Scheduled air transportation(1)",4811,464,null,0]
["Nonscheduled air transportation(1)",4812,49.9,null,0]
["Rail transportation",482,210.6,null,0]
["Water transportation",483,64.400000000000006,null,0]
["Truck transportation",484,1516.1,null,0]
["General freight trucking(1)",4841,1045.0999999999999,null,0]
["General freight trucking, local(1)",48411,261.60000000000002,null,0]
["General freight trucking, long-distance(1)",48412,783.4,null,0]
["General freight trucking, long-distance TL(1)",484121,515.6,null,0]
["General freight trucking, long-distance LTL(1)",484122,265.2,null,0]
["Specialized freight trucking(1)",4842,471.2,null,0]
["Used household and office goods moving(1)",48421,97,null,0]
["Other specialized trucking, local(1)",48422,234.4,null,0]
["Other specialized trucking, long-distance(1)",48423,140.5,null,0]
["Transit and ground passenger transportation",485,492.3,null,0]
["Taxi and limousine service(1)",4853,73.599999999999994,null,0]
["Taxi service(1)",48531,35.299999999999997,null,0]
["Limousine service(1)",48532,38.200000000000003,null,0]
["School and employee bus transportation(1)",4854,201.4,null,0]
["Urban, interurban, rural, and charter bus transportation(1)","4851,2,5",105.5,null,0]
["Other ground passenger transportation(1)",4859,112.4,null,0]
["Pipeline transportation",486,47.4,null,0]
["Scenic and sightseeing transportation",487,34.299999999999997,null,0]
["Support activities for transportation",488,718.6,null,0]
["Support activities for air transportation(1)",4881,227.3,null,0]
["Airport operations(1)",48811,107.3,null,0]
["Support activities for water transportation(1)",4883,94.3,null,0]
["Marine cargo handling(1)",48832,63.1,null,0]
["Support activities for water transportation, except marine cargo(1)","48831,3,9",31.5,null,0]
["Support activities for road transportation(1)",4884,101.5,null,0]
["Motor vehicle towing(1)",48841,66.5,null,0]
["Freight transportation arrangement(1)",4885,230.8,"x",230.8]
["Support activities for other transportation, including rail(1)","4882,9",64.7,null,0]
["Couriers and messengers",492,751.7,null,0]
["Couriers and express delivery services(1)",4921,649.5,"x",649.5]
["Local messengers and delivery and private postal service(1)",49111221,101.4,null,0]
["Warehousing and storage",493,1189,null,0]
["General warehousing and storage(1)",49311,1059.5999999999999,null,0]
["Refrigerated warehousing and storage(1)",49312,66.3,null,0]
["Miscellaneous warehousing and storage(1)","49313,9",62.8,null,0]
[null,null,null,null,0]
["Utilities",22,552,null,0]
["Power generation and supply(1)",2211,388.4,null,0]
["Electric power generation(1)",22111,152.4,null,0]
["Fossil fuel electric power generation(1)",221112,89.3,null,{"$f":"IF(D521=\"x\",C521,0)","v":0}]
["Nuclear and other electric power generation(1)","221111,3-8",63.4,null,0]
["Electric power transmission and distribution(1)",22112,235.7,null,0]
["Electric bulk power transmission and control(1)",221121,26.6,null,0]
["Electric power distribution(1)",221122,209.2,null,0]
["Natural gas distribution(1)",2212,111,null,0]
["Water, sewage and other systems(1)",2213,52.5,null,0]
[null,null,null,null,0]
["Information",51,2802,null,0,{"$f":"SUM(E529:E556)/C529","v":0.79011420413989997}]
["Publishing industries, except Internet",511,735.6,null,0]
["Newspaper, book, and directory publishers(1)",5111,311,null,0]
["Newspaper publishers(1)",51111,137.80000000000001,"x",137.80000000000001]
["Periodical publishers(1)",51112,85.6,"x",85.6]
["Book publishers(1)",51113,59.3,"x",59.3]
["Directory, mailing list, and other publishers(1)","51114,9",28.4,"x",28.4]
["Software publishers(1)",5112,425.1,"x",425.1]
["Motion picture and sound recording industries",512,417.6,null,0]
["Motion picture and video production(1)",51211,237.2,null,0]
["Motion picture and video exhibition(1)",51213,150.30000000000001,null,0]
["Broadcasting, except Internet",515,267.89999999999998,null,0]
["Radio and television broadcasting(1)",5151,215.4,null,0]
["Radio broadcasting(1)",51511,81.599999999999994,null,0]
["Television broadcasting(1)",51512,133.69999999999999,null,0]
["Cable and other subscription programming(1)",5152,52.9,"x",52.9]
["Telecommunications",517,719.5,null,0]
["Wired and wireless telecommunications carriers(1)",5173,630.5,null,0]
["Wired telecommunications carriers(1)",517311,517.5,"x",517.5]
["Wireless telecommunications carriers, except satellite(1)",517312,112.8,"x",112.8]
["Other telecommunications(1)","5174,9",87.8,"x",87.8]
["Telecommunications resellers(1)",517911,46.3,"x",46.3]
["Data processing, hosting and related services",518,332.2,"x",332.2]
["Other information services",519,328.7,null,0]
["Internet publishing and broadcasting and web search portals(1)",51913,263.7,"x",263.7]
["All other information services(1)","51911,2,9",64.5,"x",64.5]
[null,null,null,null,0]
["Financial activities(3)",null,8650,null,0]
["Finance and insurance",52,6331.4,null,0,{"$f":"SUM(E557:E598)/C557","v":0.9922765896958019}]
["Monetary authorities - central bank",521,19.7,"x",19.7]
["Credit intermediation and related activities",522,2630.9,"x",2630.9]
["Depository credit intermediation",5221,1709.5,"x",1709.5]
["Commercial banking",52211,1307.4000000000001,"x",1307.4000000000001]
["Savings institutions(1)",52212,112.1,null,0]
["Credit unions and other depository credit intermediation(1)","52213,9",290,null,0]
["Nondepository credit intermediation",5222,615,"x",615]
["Credit card issuing(1)",52221,84.9,null,0]
["Sales financing(1)",52222,98.6,null,0]
["Other nondepository credit intermediation(1)",52229,430.5,null,0]
["Consumer lending(1)",522291,100.1,null,0]
["Real estate credit(1)",522292,237,null,0]
["Miscellaneous nondepository credit intermediation(1)","522293,4,8",93.1,null,0]
["Activities related to credit intermediation",5223,306.39999999999998,null,0]
["Mortgage and nonmortgage loan brokers(1)",52231,85.9,null,0]
["Financial transaction processing and clearing(1)",52232,135.5,null,0]
["Other credit intermediation activities(1)",52239,84.9,null,0]
["Securities, commodity contracts, investments, and funds and trusts","523,5",970.2,null,0]
["Securities brokerage(1)",52312,281.60000000000002,null,0]
["Securities and commodity contracts brokerage and exchanges(1)","5231,2",465.3,null,0]
["Other financial investment activities, including funds and trusts(1)","5239; 525",505,null,0]
["Miscellaneous intermediation(1)",52391,27,null,0]
["Portfolio management(1)",52392,215.3,null,0]
["Investment advice(1)",52393,200.7,null,0]
["All other financial investment activities, including funds and trusts(1)","52399; 525",62.1,null,0]
["Insurance carriers and related activities",524,2710.6,null,0]
["Insurance carriers(1)",5241,1533.8,null,0]
["Direct life and health insurance carriers(1)",52411,882.9,null,{"$f":"IF(D585=\"x\",C585,0)","v":0}]
["Direct life insurance carriers(1)",524113,337.8,null,0]
["Direct health and medical insurance carriers(1)",524114,543.9,null,0]
["Direct insurers, except life and health(1)",52412,621.79999999999995,null,0]
["Direct property and casualty insurers(1)",524126,523.4,null,0]
["Direct title insurance and other direct insurance carriers(1)","524127,8",98.1,null,0]
["Reinsurance carriers(1)",52413,30.4,null,0]
["Insurance agencies, brokerages, and related services(1)",5242,1176.8,null,0]
["Insurance agencies and brokerages(1)",52421,836.1,null,0]
["Other insurance-related activities(1)",52429,341.2,null,0]
["Claims adjusting(1)",524291,52.9,null,0]
["Third-party administration of insurance funds(1)",524292,203.5,null,0]
["All other insurance-related activities(1)",524298,84.5,null,0]
["Real estate and rental and leasing",53,2318.1,null,0]
["Real estate",531,1701.2,null,0,{"$f":"SUM(E599:E623)/C598","v":0.95185712436909542}]
["Lessors of real estate(1)",5311,611.29999999999995,null,0]
["Lessors of residential buildings(1)",53111,361.4,null,0]
["Lessors of nonresidential buildings(1)",53112,151.6,"x",151.6]
["Miniwarehouse and self-storage unit operators(1)",53113,57.4,null,0]
["Lessors of other real estate property(1)",53119,40.5,"x",40.5]
["Offices of real estate agents and brokers(1)",5312,359.6,"x",359.6]
["Activities related to real estate(1)",5313,730.2,"x",730.2]
["Real estate property managers(1)",53131,634,"x",634]
["Residential property managers(1)",531311,463.4,null,0]
["Nonresidential property managers(1)",531312,171,"x",171]
["Offices of real estate appraisers(1)",53132,33.799999999999997,"x",33.799999999999997]
["Other activities related to real estate(1)",53139,62.7,"x",62.7]
["Rental and leasing services",532,593.79999999999995,null,0]
["Automotive equipment rental and leasing(1)",5321,231,null,0]
["Passenger car rental and leasing(1)",53211,138,null,0]
["Truck, trailer, and RV rental and leasing(1)",53212,93.2,null,0]
["Consumer goods rental(1)",5322,140.69999999999999,null,0]
["Video tape and disc rental(1)",532282,8.3000000000000007,null,0]
["Home health equipment rental(1)",532283,36.799999999999997,null,0]
["General rental centers(1)",5323,37.200000000000003,null,0]
["Machinery and equipment rental and leasing(1)",5324,184.1,null,0]
["Heavy machinery rental and leasing(1)",53241,98.8,null,0]
["Office equipment and other machinery rental and leasing(1)","53242,9",85.2,null,0]
["Lessors of nonfinancial intangible assets",533,23.1,"x",23.1]
[null,null,null,null,0]
["Professional and business services",null,21394,null,0,{"$f":"SUM(E625:E676)/C626","v":0.95268277837826498}]
["Professional and technical services",54,9529.2999999999993,null,0]
["Legal services",5411,1141,null,0]
["Offices of lawyers(1)",54111,1052.0999999999999,"x",1052.0999999999999]
["Other legal services(1)",54119,88.5,"x",88.5]
["Title abstract and settlement offices(1)",541191,58.9,"x",58.9]
["Accounting and bookkeeping services",5412,1043.7,null,0]
["Offices of certified public accountants(1)",541211,491.3,"x",491.3]
["Tax preparation services(1)",541213,101.1,"x",101.1]
["Payroll services(1)",541214,191,"x",191]
["Other accounting services(1)",541219,260.60000000000002,null,0]
["Architectural and engineering services",5413,1512.6,null,0]
["Architectural services(1)",54131,200.2,"x",200.2]
["Landscape architectural services(1)",54132,34.1,"x",34.1]
["Engineering and drafting services(1)","54133,4",1006.2,"x",1006.2]
["Building inspection, surveying, and mapping services(1)","54135,6,7",96.6,"x",96.6]
["Testing laboratories(1)",54138,175.5,null,0]
["Specialized design services",5414,150.30000000000001,null,0]
["Interior design services(1)",54141,46.3,"x",46.3]
["Graphic design services(1)",54143,64.900000000000006,"x",64.900000000000006]
["Computer systems design and related services",5415,2197.8000000000002,null,0]
["Custom computer programming services(1)",541511,952.9,"x",952.9]
["Computer systems design services(1)",541512,1041,"x",1041]
["Computer facilities management services(1)",541513,76.900000000000006,"x",76.900000000000006]
["Other computer-related services(1)",541519,125.5,"x",{"$f":"IF(D649=\"x\",C649,0)","v":125.5}]
["Management and technical consulting services",5416,1521.8,null,0]
["Management consulting services(1)",54161,1237.5999999999999,"x",1237.5999999999999]
["Administrative management consulting services(1)",541611,644.9,"x",644.9]
["Human resource consulting services(1)",541612,83.4,"x",83.4]
["Marketing consulting services(1)",541613,269.39999999999998,"x",269.39999999999998]
["Process and logistics consulting services(1)",541614,133.6,"x",133.6]
["Other management consulting services(1)",541618,106.8,"x",106.8]
["Environmental consulting services(1)",54162,86,"x",86]
["Other technical consulting services(1)",54169,198.4,"x",198.4]
["Scientific research and development services",5417,721.8,null,0]
["Research and development in the physical, engineering, and life sciences(1)",54171,655.7,null,0]
["Research and development in nanotechnology(1)",541713,21,null,0]
["Research and development in biotechnology, except nanobiotechnology(1)",541714,203.3,null,0]
["Research and development in the physical, engineering, and life sciences, except nanotechnology and biotechnology(1)",541715,431,null,0]
["Social science and humanities research(1)",54172,66,null,0]
["Advertising and related services",5418,486.8,null,0]
["Advertising agencies(1)",54181,203.6,"x",203.6]
["Public relations agencies(1)",54182,61.7,"x",61.7]
["Media buying agencies and media representatives(1)","54183,4",35.9,"x",35.9]
["Display advertising(1)",54185,37.299999999999997,"x",37.299999999999997]
["Direct mail advertising(1)",54186,39.700000000000003,"x",39.700000000000003]
["Advertising material distribution and other advertising services(1)","54187,9",109.4,null,0]
["Other professional and technical services",5419,753.4,null,0]
["Marketing research and public opinion polling(1)",54191,86.4,"x",86.4]
["Photographic services(1)",54192,45.7,null,0]
["Veterinary services(1)",54194,394.7,null,0]
["Miscellaneous professional and technical services(1)","54193,9",226.2,"x",226.2]
["Management of companies and enterprises",55,2408.9,null,0,{"$f":"SUM(E677:E680)/C677","v":1.0000415127236497}]
["Offices of bank holding companies and of other holding companies(1)","551111,2",89.7,"x",89.7]
["Managing offices(1)",551114,2319.3000000000002,"x",2319.3000000000002]
["Administrative and waste services",56,9455.7999999999993,null,0]
["Administrative and support services",561,9001.9,null,0,{"$f":"SUM(E681:E727)/C680","v":0.60245563569449445}]
["Office administrative services",5611,528.9,null,0]
["Facilities support services",5612,154.69999999999999,null,0]
["Employment services",5613,3716.2,null,0]
["Employment placement agencies and executive search services(1)",56131,299.10000000000002,"x",299.10000000000002]
["Employment placement agencies(1)",561311,257.7,"x",257.7]
["Executive search services(1)",561312,41.1,"x",41.1]
["Temporary help services(1)",56132,3039.9,"x",3039.9]
["Professional employer organizations(1)",56133,377.6,"x",377.6]
["Business support services",5614,894.6,null,0]
["Document preparation services(1)",56141,50,"x",50]
["Telephone call centers(1)",56142,512.79999999999995,"x",512.79999999999995]
["Telephone answering services(1)",561421,36.299999999999997,"x",36.299999999999997]
["Telemarketing bureaus(1)",561422,476.6,"x",476.6]
["Business service centers(1)",56143,81.3,"x",81.3]
["Collection agencies(1)",56144,124.4,"x",124.4]
["Credit bureaus(1)",56145,22.3,"x",22.3]
["Other business support services(1)",56149,104.3,null,0]
["Travel arrangement and reservation services",5615,215.2,null,0]
["Travel agencies(1)",56151,90.2,"x",90.2]
["Tour operators(1)",56152,27.4,null,0]
["Other travel arrangement services(1)",56159,97.8,"x",97.8]
["Investigation and security services",5616,957.2,null,0]
["Security and armored car services(1)",56161,805.8,null,0]
["Investigation services(1)",561611,37.9,"x",37.9]
["Security guards and patrols and armored car services(1)","561612,3",768.1,null,0]
["Security systems services(1)",56162,151.69999999999999,"x",151.69999999999999]
["Services to buildings and dwellings",5617,2198.3000000000002,null,0]
["Exterminating and pest control services(1)",56171,129.19999999999999,null,0]
["Janitorial services(1)",56172,1107.3,null,0]
["Landscaping services(1)",56173,820.7,null,0]
["Carpet and upholstery cleaning services(1)",56174,42.9,null,0]
["Other services to buildings and dwellings(1)",56179,97.2,null,{"$f":"IF(D713=\"x\",C713,0)","v":0}]
["Other support services",5619,336.9,null,0]
["Packaging and labeling services(1)",56191,59.6,null,0]
["Convention and trade show organizers(1)",56192,64.8,null,0]
["All other support services(1)",56199,212.7,null,0]
["Waste management and remediation services",562,453.9,null,0]
["Waste collection(1)",5621,188.4,null,0]
["Waste treatment and disposal(1)",5622,100.6,null,0]
["Hazardous waste treatment and disposal(1)",562211,37.700000000000003,null,0]
["Nonhazardous waste treatment and disposal(1)","562212,3,9",62.8,null,0]
["Remediation and other waste services(1)",5629,165,null,0]
["Remediation services(1)",56291,90.5,null,0]
["Materials recovery facilities and other waste management services(1)","56292,9",74.400000000000006,null,0]
[null,null,null,null,0]
["Education and health services",null,24144,null,0]
["Educational services",61,3776.8,null,0,{"$f":"SUM(E728:E740)/C728","v":6.2433806396949801E-2}]
["Elementary and secondary schools(1)",6111,1104.7,null,0]
["Junior colleges(1)",6112,50.8,null,0]
["Colleges and universities(1)",6113,1826,null,0]
["Business, computer, and management training(1)",6114,74.400000000000006,"x",74.400000000000006]
["Business and secretarial schools and computer training(1)","61141,2",21.7,null,0]
["Management training(1)",61143,52.6,null,0]
["Technical and trade schools(1)",6115,115.4,null,0]
["Other schools and instruction(1)",6116,448.7,null,0]
["Fine arts schools(1)",61161,107,null,0]
["Sports and recreation instruction(1)",61162,142.6,null,0]
["Miscellaneous schools and instruction(1)","61163,9",198.4,null,0]
["Educational support services(1)",6117,161.4,"x",161.4]
["Health care and social assistance",62,20366.8,null,0,{"$f":"SUM(E741:E796)/C741","v":0.23438144431133023}]
["Health care(4)","621,2,3",16337.4,null,0]
["Ambulatory health care services",621,7718.5,null,0]
["Offices of physicians",6211,2671.1,null,0]
["Offices of physicians, except mental health(1)",621111,2610.5,"x",2610.5]
["Offices of mental health physicians(1)",621112,60.5,"x",60.5]
["Offices of dentists",6212,984.2,"x",984.2]
["Offices of other health practitioners",6213,964.3,null,0]
["Offices of chiropractors(1)",62131,137.69999999999999,"x",137.69999999999999]
["Offices of optometrists(1)",62132,138,"x",138]
["Offices of mental health practitioners(1)",62133,110.6,"x",110.6]
["Offices of specialty therapists(1)",62134,422.5,"x",422.5]
["Offices of all other health practitioners(1)",62139,154.80000000000001,"x",154.80000000000001]
["Offices of podiatrists(1)",621391,33.6,"x",33.6]
["Offices of miscellaneous health practitioners(1)",621399,121.2,"x",121.2]
["Outpatient care centers",6214,967.5,null,0]
["Outpatient mental health centers(1)",62142,251.2,null,0]
["Outpatient care centers, except mental health(1)","62141,9",716.4,null,0]
["HMO medical centers(1)",621491,214.5,null,0]
["Kidney dialysis centers(1)",621492,139.1,null,0]
["Freestanding emergency medical centers(1)",621493,157.69999999999999,null,0]
["Miscellaneous outpatient care centers(1)","621410,98",205,null,0]
["Medical and diagnostic laboratories",6215,288.7,null,0]
["Medical laboratories(1)",621511,209.9,null,0]
["Diagnostic imaging centers(1)",621512,78.8,null,0]
["Home health care services",6216,1531.6,null,0]
["Other ambulatory health care services",6219,311,null,0]
["Ambulance services(1)",62191,173.8,null,0]
["All other ambulatory health care services(1)",62199,137.1,null,0]
["Blood and organ banks(1)",621991,74.5,null,0]
["Miscellaneous ambulatory health care services(1)",621999,62.6,null,0]
["Hospitals",622,5228.6000000000004,null,0]
["General medical and surgical hospitals(1)",6221,4800,null,0]
["Psychiatric and substance abuse hospitals(1)",6222,154,null,0]
["Other hospitals(1)",6223,273.7,null,0]
["Nursing and residential care facilities",623,3390.3,null,0]
["Nursing care facilities",6231,1606.4,null,{"$f":"IF(D777=\"x\",C777,0)","v":0}]
["Residential mental health facilities",6232,651,null,0]
["Residential intellectual and developmental disability facilities(1)",62321,406.8,null,0]
["Residential mental health and substance abuse facilities(1)",62322,244.2,null,0]
["Community care facilities for the elderly",6233,963.1,null,0]
["Continuing care retirement communities(1)",623311,504.3,null,0]
["Assisted living facilities for the elderly(1)",623312,458.4,null,0]
["Other residential care facilities",6239,169.9,null,0]
["Social assistance",624,4029.4,null,0]
["Individual and family services",6241,2544.8000000000002,null,0]
["Child and youth services(1)",62411,210.8,null,0]
["Services for the elderly and persons with disabilities(1)",62412,1883.6,null,0]
["Other individual and family services(1)",62419,451.3,null,0]
["Emergency and other relief services",6242,176.5,null,0]
["Community food services(1)",62421,36.4,null,0]
["Community housing, emergency, and relief services(1)","62422,3",140.19999999999999,null,0]
["Vocational rehabilitation services",6243,328.3,null,0]
["Child day care services",6244,979.7,null,0]
[null,null,null,null,0]
["Leisure and hospitality",null,16695]
["Arts, entertainment, and recreation",71,2469.4]
["Performing arts and spectator sports",711,517.4]
["Performing arts companies(1)",7111,131.80000000000001]
["Musical groups and artists(1)",71113,41.4]
["Theater, dance, and other performing arts companies(1)","71111,2,9",90.6]
["Spectator sports(1)",7112,161.80000000000001]
["Sports teams and clubs(1)",711211,105.1]
["Racetracks(1)",711212,34.4]
["Other spectator sports(1)",711219,21.8]
["Arts and sports promoters and agents and managers for public figures(1)","7113,4",170.8]
["Independent artists, writers, and performers(1)",7115,50.4]
["Museums, historical sites, and similar institutions",712,175.8]
["Museums(1)",71211,101.5]
["Historical sites and other similar institutions(1)","71212,3,9",74.099999999999994]
["Amusements, gambling, and recreation",713,1776.2]
["Amusement parks and arcades(1)",7131,216.5]
["Gambling industries(1)",7132,121.3]
["Casinos, except casino hotels(1)",71321,81.5]
["Other gambling industries(1)",71329,39.799999999999997]
["Other amusement and recreation industries(1)",7139,1435.9]
["Golf courses and country clubs(1)",71391,391.7]
["Skiing facilities(1)",71392,50.4]
["Marinas(1)",71393,37.9]
["Fitness and recreational sports centers(1)",71394,656.8]
["Bowling centers(1)",71395,73.099999999999994]
["All other amusement and recreation industries(1)",71399,224.1]
["Accommodation and food services",72,14225.2]
["Accommodation",721,2045.8]
["Traveler accommodation(1)",7211,1973.2]
["Hotels and motels, except casino hotels(1)",72111,1658.5]
["Casino hotels(1)",72112,271.5]
["Other traveler accommodation(1)",72119,42.9]
["Bed-and-breakfast inns(1)",721191,15.4]
["All other traveler accommodation and rooming and boarding houses(1)",721310199,27.6]
["RV parks and recreational camps(1)",7212,74.3]
["RV parks and campgrounds(1)",721211,32.1]
["Recreational and vacation camps(1)",721214,42.9]
["Food services and drinking places",722,12179.4]
["Special food services(1)",7223,729.6]
["Food service contractors(1)",72231,514.4]
["Caterers and mobile food services(1)","72232,3",214.6]
["Drinking places, alcoholic beverages(1)",7224,398.6]
["Restaurants and other eating places(1)",7225,11045.3]
["Full-service restaurants(1)",722511,5633.3]
["Limited-service restaurants(1)",722513,4542.2]
["Cafeterias, grill buffets, and buffets(1)",722514,120.7]
["Snack and nonalcoholic beverage bars(1)",722515,747.7]
[]
["Other services",81,5925,null,{"$f":"IF(D845=\"x\",C845,0)","v":0},{"$f":"SUM(E845:E895)/C845","v":0.88892827004219399}]
["Repair and maintenance",811,1353.3,null,0]
["Automotive repair and maintenance(1)",8111,959.8,null,0]
["Automotive mechanical and electrical repair(1)",81111,408.3,null,0]
["General automotive repair(1)",811111,358.7,null,0]
["Automotive exhaust system and transmission repair(1)","811112,3",23.8,null,0]
["Other automotive mechanical and elec. repair(1)",811118,25.9,null,0]
["Automotive body, interior, and glass repair(1)",81112,282.3,null,0]
["Automotive body and interior repair(1)",811121,248.2,null,0]
["Automotive glass replacement shops(1)",811122,34.1,null,0]
["Other automotive repair and maintenance(1)",81119,267.89999999999998,null,0]
["Car washes(1)",811192,178.5,null,0]
["Auto oil change shops and all other auto repair and maintenance(1)","811191,8",89.1,null,0]
["Electronic equipment repair and maintenance(1)",8112,105.4,null,0]
["Computer and office machine repair(1)",811212,40.700000000000003,null,0]
["Miscellaneous electronic equipment repair and maintenance(1)","811211,3,9",64.7,null,0]
["Commercial machinery repair and maintenance(1)",8113,210.9,null,0]
["Household goods repair and maintenance(1)",8114,77.099999999999994,null,0]
["Personal and laundry services",812,1536,null,0]
["Personal care services(1)",8121,745.5,null,0]
["Hair, nail, and skin care services(1)",81211,577.1,null,0]
["Barber shops and beauty salons(1)","812111,2",461.4,null,0]
["Nail salons(1)",812113,115.4,null,0]
["Other personal care services(1)",81219,169,null,0]
["Death care services(1)",8122,134.9,null,0]
["Funeral homes and funeral services(1)",81221,103.6,null,0]
["Cemeteries and crematories(1)",81222,31.1,null,0]
["Drycleaning and laundry services(1)",8123,297.7,null,0]
["Coin-operated laundries and drycleaners(1)",81231,42.2,null,0]
["Drycleaning and laundry services, except coin-operated(1)",81232,122.7,null,0]
["Linen and uniform supply(1)",81233,132.80000000000001,null,0]
["Linen supply(1)",812331,65.900000000000006,null,0]
["Industrial launderers(1)",812332,66.7,null,0]
["Other personal services(1)",8129,356.8,null,0]
["Pet care services, except veterinary(1)",81291,127.2,null,0]
["Parking lots and garages(1)",81293,148,null,0]
["All other personal services, including photofinishing(1)","81292,9",82.3,null,0]
["Membership associations and organizations",813,3035.9,"x",3035.9]
["Grantmaking and giving services(1)",8132,186.6,"x",186.6]
["Grantmaking foundations(1)",813211,112.5,"x",112.5]
["Voluntary health organizations(1)",813212,36.9,"x",36.9]
["Other grantmaking and giving services(1)",813219,37.200000000000003,"x",37.200000000000003]
["Social advocacy organizations(1)",8133,241.4,"x",241.4]
["Human rights organizations(1)",813311,48.6,"x",48.6]
["Environment, conservation, and other social advocacy organizations(1)","813312,9",192.3,"x",192.3]
["Civic and social organizations(1)",8134,398.8,"x",398.8]
["Professional and similar organizations(1)",8139,488.8,"x",488.8]
["Business associations(1)",81391,118.7,"x",118.7]
["Professional organizations(1)",81392,86.3,"x",86.3]
["Labor unions and similar labor organizations(1)",81393,114.9,"x",114.9]
["Miscellaneous professional and similar organizations(1)","81394,9",168,"x",168]
[null,null,null,null,0]
["Government",null,22529,null,0,{"$f":"SUM(E897:E917)/C897","v":0.32686759288028761}]
["Federal",null,2811,null,0]
["Federal, except U.S. Postal Service",null,2204.6,null,0]
["Federal hospitals(1)",null,354.8,null,0]
["Department of Defense(1)",null,531.79999999999995,null,0]
["U.S. Postal Service(5)",null,606.29999999999995,null,0]
["Other Federal government(1)",null,1316.6,"x",1316.6]
["State government",null,5178,null,0]
["State government education",null,2485.1999999999998,null,{"$f":"IF(D905=\"x\",C905,0)","v":0}]
["State government, excluding education",null,2692.7,null,0]
["State hospitals(1)",null,384.9,null,0]
["State government general administration(1)",null,1809.9,"x",1809.9]
["Other State government(1)",null,499.3,null,0]
["Local government",null,14540,null,0]
["Local government education",null,7992.4,null,0]
["Local government, excluding education",null,6548,null,0]
["Local government utilities(1)",null,247.4,null,0]
["Local government transportation(1)",null,288.39999999999998,null,0]
["Local hospitals(1)",null,683.8,null,0]
["Local government general administration(1)",null,4237.5,"x",4237.5]
["Other local government(1)",null,1093.0999999999999,null,0]
["Footnotes"]
["(1) Seasonally Adjusted Independently. See https://www.bls.gov/web/empsit/cestn.htm#SA_ind for details."]
["(2) Includes motor vehicles, motor vehicle bodies and trailers, and motor vehicle parts."]
["(3) Excludes nonoffice commissioned real estate sales agents."]
["(4) Includes ambulatory health care services, hospitals, and nursing and residential care facilities."]
["(5) Includes rural mail carriers."]
["(P) Preliminary"]

{"sheet":"Business Summary","index":2,"n_rows":122,"n_cols":75,"rows_kept":122,"cut":false,"hidden":false,"merged":[[121,3,121,13],[121,14,121,25],[121,26,121,40],[121,41,121,51],[121,52,121,77],[117,0,117,78],[118,0,118,78],[119,3,119,13],[119,14,119,77],[120,3,120,13],[120,14,120,51],[120,52,120,77],[113,71,113,73],[113,74,113,76],[114,0,114,78],[115,1,115,63],[116,1,116,12],[116,13,116,22],[116,23,116,72],[113,35,113,39],[113,40,113,46],[113,47,113,50],[113,51,113,59],[113,60,113,65],[113,66,113,70],[112,51,112,59],[112,60,112,65],[112,66,112,70],[112,71,112,73],[112,74,112,76],[113,0,113,8],[113,9,113,15],[113,16,113,21],[113,22,113,24],[113,25,113,34],[111,71,111,73],[111,74,111,76],[112,0,112,8],[112,9,112,15],[112,16,112,21],[112,22,112,24],[112,25,112,34],[112,35,112,39],[112,40,112,46],[112,47,112,50],[111,35,111,39],[111,40,111,46],[111,47,111,50],[111,51,111,59],[111,60,111,65],[111,66,111,70],[110,51,110,59],[110,60,110,65],[110,66,110,70],[110,71,110,73],[110,74,110,76],[111,0,111,8],[111,9,111,15],[111,16,111,21],[111,22,111,24],[111,25,111,34],[109,71,109,73],[109,74,109,76],[110,0,110,8],[110,9,110,15],[110,16,110,21],[110,22,110,24],[110,25,110,34],[110,35,110,39],[110,40,110,46],[110,47,110,50],[109,35,109,39],[109,40,109,46],[109,47,109,50],[109,51,109,59],[109,60,109,65],[109,66,109,70],[108,51,108,59],[108,60,108,65],[108,66,108,70],[108,71,108,73],[108,74,108,76],[109,0,109,8],[109,9,109,15],[109,16,109,21],[109,22,109,24],[109,25,109,34],[107,71,107,73],[107,74,107,76],[108,0,108,8],[108,9,108,15],[108,16,108,21],[108,22,108,24],[108,25,108,34],[108,35,108,39],[108,40,108,46],[108,47,108,50],[107,35,107,39],[107,40,107,46],[107,47,107,50],[107,51,107,59],[107,60,107,65],[107,66,107,70],[106,51,106,59],[106,60,106,65],[106,66,106,70],[106,71,106,73],[106,74,106,76],[107,0,107,8],[107,9,107,15],[107,16,107,21],[107,22,107,24],[107,25,107,34],[105,71,105,73],[105,74,105,76],[106,0,106,8],[106,9,106,15],[106,16,106,21],[106,22,106,24],[106,25,106,34],[106,35,106,39],[106,40,106,46],[106,47,106,50],[105,35,105,39],[105,40,105,46],[105,47,105,50],[105,51,105,59],[105,60,105,65],[105,66,105,70],[104,51,104,59],[104,60,104,65],[104,66,104,70],[104,71,104,73],[104,74,104,76],[105,0,105,8],[105,9,105,15],[105,16,105,21],[105,22,105,24],[105,25,105,34],[103,71,103,73],[103,74,103,76],[104,0,104,8],[104,9,104,15],[104,16,104,21],[104,22,104,24],[104,25,104,34],[104,35,104,39],[104,40,104,46],[104,47,104,50],[103,35,103,39],[103,40,103,46],[103,47,103,50],[103,51,103,59],[103,60,103,65],[103,66,103,70],[102,51,102,59],[102,60,102,65],[102,66,102,70],[102,71,102,73],[102,74,102,76],[103,0,103,8],[103,9,103,15],[103,16,103,21],[103,22,103,24],[103,25,103,34],[101,71,101,73],[101,74,101,76],[102,0,102,8],[102,9,102,15],[102,16,102,21],[102,22,102,24],[102,25,102,34],[102,35,102,39],[102,40,102,46],[102,47,102,50],[101,35,101,39],[101,40,101,46],[101,47,101,50],[101,51,101,59],[101,60,101,65],[101,66,101,70],[100,51,100,59],[100,60,100,65],[100,66,100,70],[100,71,100,73],[100,74,100,76],[101,0,101,8],[101,9,101,15],[101,16,101,21],[101,22,101,24],[101,25,101,34],[99,71,99,73],[99,74,99,76],[100,0,100,8],[100,9,100,15],[100,16,100,21],[100,22,100,24],[100,25,100,34],[100,35,100,39],[100,40,100,46],[100,47,100,50],[99,35,99,39],[99,40,99,46],[99,47,99,50],[99,51,99,59],[99,60,99,65],[99,66,99,70],[98,51,98,59],[98,60,98,65],[98,66,98,70],[98,71,98,73],[98,74,98,76],[99,0,99,8],[99,9,99,15],[99,16,99,21],[99,22,99,24],[99,25,99,34],[97,71,97,73],[97,74,97,76],[98,0,98,8],[98,9,98,15],[98,16,98,21],[98,22,98,24],[98,25,98,34],[98,35,98,39],[98,40,98,46],[98,47,98,50],[97,35,97,39],[97,40,97,46],[97,47,97,50],[97,51,97,59],[97,60,97,65],[97,66,97,70],[96,51,96,59],[96,60,96,65],[96,66,96,70],[96,71,96,73],[96,74,96,76],[97,0,97,8],[97,9,97,15],[97,16,97,21],[97,22,97,24],[97,25,97,34],[95,71,95,73],[95,74,95,76],[96,0,96,8],[96,9,96,15],[96,16,96,21],[96,22,96,24],[96,25,96,34],[96,35,96,39],[96,40,96,46],[96,47,96,50],[95,35,95,39],[95,40,95,46],[95,47,95,50],[95,51,95,59],[95,60,95,65],[95,66,95,70],[94,51,94,59],[94,60,94,65],[94,66,94,70],[94,71,94,73],[94,74,94,76],[95,0,95,8],[95,9,95,15],[95,16,95,21],[95,22,95,24],[95,25,95,34],[93,71,93,73],[93,74,93,76],[94,0,94,8],[94,9,94,15],[94,16,94,21],[94,22,94,24],[94,25,94,34],[94,35,94,39],[94,40,94,46],[94,47,94,50],[93,35,93,39],[93,40,93,46],[93,47,93,50],[93,51,93,59],[93,60,93,65],[93,66,93,70],[92,51,92,59],[92,60,92,65],[92,66,92,70],[92,71,92,73],[92,74,92,76],[93,0,93,8],[93,9,93,15],[93,16,93,21],[93,22,93,24],[93,25,93,34],[91,71,91,73],[91,74,91,76],[92,0,92,8],[92,9,92,15],[92,16,92,21],[92,22,92,24],[92,25,92,34],[92,35,92,39],[92,40,92,46],[92,47,92,50],[91,35,91,39],[91,40,91,46],[91,47,91,50],[91,51,91,59],[91,60,91,65],[91,66,91,70],[90,51,90,59],[90,60,90,65],[90,66,90,70],[90,71,90,73],[90,74,90,76],[91,0,91,8],[91,9,91,15],[91,16,91,21],[91,22,91,24],[91,25,91,34],[89,71,89,73],[89,74,89,76],[90,0,90,8],[90,9,90,15],[90,16,90,21],[90,22,90,24],[90,25,90,34],[90,35,90,39],[90,40,90,46],[90,47,90,50],[89,35,89,39],[89,40,89,46],[89,47,89,50],[89,51,89,59],[89,60,89,65],[89,66,89,70],[88,51,88,59],[88,60,88,65],[88,66,88,70],[88,71,88,73],[88,74,88,76],[89,0,89,8],[89,9,89,15],[89,16,89,21],[89,22,89,24],[89,25,89,34],[87,71,87,73],[87,74,87,76],[88,0,88,8],[88,9,88,15],[88,16,88,21],[88,22,88,24],[88,25,88,34],[88,35,88,39],[88,40,88,46],[88,47,88,50],[87,35,87,39],[87,40,87,46],[87,47,87,50],[87,51,87,59],[87,60,87,65],[87,66,87,70],[86,51,86,59],[86,60,86,65],[86,66,86,70],[86,71,86,73],[86,74,86,76],[87,0,87,8],[87,9,87,15],[87,16,87,21],[87,22,87,24],[87,25,87,34],[85,71,85,73],[85,74,85,76],[86,0,86,8],[86,9,86,15],[86,16,86,21],[86,22,86,24],[86,25,86,34],[86,35,86,39],[86,40,86,46],[86,47,86,50],[85,35,85,39],[85,40,85,46],[85,47,85,50],[85,51,85,59],[85,60,85,65],[85,66,85,70],[84,51,84,59],[84,60,84,65],[84,66,84,70],[84,71,84,73],[84,74,84,76],[85,0,85,8],[85,9,85,15],[85,16,85,21],[85,22,85,24],[85,25,85,34],[83,71,83,73],[83,74,83,76],[84,0,84,8],[84,9,84,15],[84,16,84,21],[84,22,84,24],[84,25,84,34],[84,35,84,39],[84,40,84,46],[84,47,84,50],[83,35,83,39],[83,40,83,46],[83,47,83,50],[83,51,83,59],[83,60,83,65],[83,66,83,70],[82,51,82,59],[82,60,82,65],[82,66,82,70],[82,71,82,73],[82,74,82,76],[83,0,83,8],[83,9,83,15],[83,16,83,21],[83,22,83,24],[83,25,83,34],[81,71,81,73],[81,74,81,76],[82,0,82,8],[82,9,82,15],[82,16,82,21],[82,22,82,24],[82,25,82,34],[82,35,82,39],[82,40,82,46],[82,47,82,50],[81,35,81,39],[81,40,81,46],[81,47,81,50],[81,51,81,59],[81,60,81,65],[81,66,81,70],[80,51,80,59],[80,60,80,65],[80,66,80,70],[80,71,80,73],[80,74,80,76],[81,0,81,8],[81,9,81,15],[81,16,81,21],[81,22,81,24],[81,25,81,34],[79,71,79,73],[79,74,79,76],[80,0,80,8],[80,9,80,15],[80,16,80,21],[80,22,80,24],[80,25,80,34],[80,35,80,39],[80,40,80,46],[80,47,80,50],[79,35,79,39],[79,40,79,46],[79,47,79,50],[79,51,79,59],[79,60,79,65],[79,66,79,70],[78,51,78,59],[78,60,78,65],[78,66,78,70],[78,71,78,73],[78,74,78,76],[79,0,79,8],[79,9,79,15],[79,16,79,21],[79,22,79,24],[79,25,79,34],[77,71,77,73],[77,74,77,76],[78,0,78,8],[78,9,78,15],[78,16,78,21],[78,22,78,24],[78,25,78,34],[78,35,78,39],[78,40,78,46],[78,47,78,50],[77,35,77,39],[77,40,77,46],[77,47,77,50],[77,51,77,59],[77,60,77,65],[77,66,77,70],[76,51,76,59],[76,60,76,65],[76,66,76,70],[76,71,76,73],[76,74,76,76],[77,0,77,8],[77,9,77,15],[77,16,77,21],[77,22,77,24],[77,25,77,34],[75,71,75,73],[75,74,75,76],[76,0,76,8],[76,9,76,15],[76,16,76,21],[76,22,76,24],[76,25,76,34],[76,35,76,39],[76,40,76,46],[76,47,76,50],[75,35,75,39],[75,40,75,46],[75,47,75,50],[75,51,75,59],[75,60,75,65],[75,66,75,70],[74,51,74,59],[74,60,74,65],[74,66,74,70],[74,71,74,73],[74,74,74,76],[75,0,75,8],[75,9,75,15],[75,16,75,21],[75,22,75,24],[75,25,75,34],[73,71,73,73],[73,74,73,76],[74,0,74,8],[74,9,74,15],[74,16,74,21],[74,22,74,24],[74,25,74,34],[74,35,74,39],[74,40,74,46],[74,47,74,50],[73,35,73,39],[73,40,73,46],[73,47,73,50],[73,51,73,59],[73,60,73,65],[73,66,73,70],[72,51,72,59],[72,60,72,65],[72,66,72,70],[72,71,72,73],[72,74,72,76],[73,0,73,8],[73,9,73,15],[73,16,73,21],[73,22,73,24],[73,25,73,34],[71,71,71,73],[71,74,71,76],[72,0,72,8],[72,9,72,15],[72,16,72,21],[72,22,72,24],[72,25,72,34],[72,35,72,39],[72,40,72,46],[72,47,72,50],[71,35,71,39],[71,40,71,46],[71,47,71,50],[71,51,71,59],[71,60,71,65],[71,66,71,70],[70,50,70,57],[70,58,70,65],[70,66,70,70],[70,71,70,73],[70,74,70,76],[71,0,71,8],[71,9,71,15],[71,16,71,21],[71,22,71,24],[71,25,71,34],[69,69,69,74],[69,75,69,76],[70,0,70,8],[70,9,70,15],[70,16,70,21],[70,22,70,24],[70,25,70,33],[70,34,70,38],[70,39,70,45],[70,46,70,49],[69,31,69,41],[69,42,69,43],[69,44,69,52],[69,53,69,56],[69,57,69,66],[69,67,69,68],[65,5,65,62],[65,63,65,78],[66,5,66,62],[66,63,66,78],[68,0,68,78],[69,0,69,8],[69,9,69,16],[69,17,69,18],[69,19,69,26],[69,27,69,30],[62,4,62,78],[63,5,63,47],[63,48,63,62],[63,63,63,78],[64,5,64,47],[64,48,64,78],[60,3,60,13],[60,14,60,25],[60,26,60,40],[60,41,60,51],[60,52,60,77],[61,5,61,47],[61,48,61,62],[61,63,61,78],[56,0,56,78],[57,0,57,78],[58,3,58,13],[58,14,58,77],[59,3,59,13],[59,14,59,51],[59,52,59,77],[52,74,52,76],[53,0,53,78],[54,1,54,63],[55,1,55,12],[55,13,55,22],[55,23,55,72],[52,39,52,45],[52,46,52,49],[52,50,52,57],[52,58,52,65],[52,66,52,70],[52,71,52,73],[51,58,51,65],[51,66,51,70],[51,71,51,73],[51,74,51,76],[52,0,52,8],[52,9,52,15],[52,16,52,21],[52,22,52,24],[52,25,52,33],[52,34,52,38],[50,74,50,76],[51,0,51,8],[51,9,51,15],[51,16,51,21],[51,22,51,24],[51,25,51,33],[51,34,51,38],[51,39,51,45],[51,46,51,49],[51,50,51,57],[50,39,50,45],[50,46,50,49],[50,50,50,57],[50,58,50,65],[50,66,50,70],[50,71,50,73],[49,58,49,65],[49,66,49,70],[49,71,49,73],[49,74,49,76],[50,0,50,8],[50,9,50,15],[50,16,50,21],[50,22,50,24],[50,25,50,33],[50,34,50,38],[48,74,48,76],[49,0,49,8],[49,9,49,15],[49,16,49,21],[49,22,49,24],[49,25,49,33],[49,34,49,38],[49,39,49,45],[49,46,49,49],[49,50,49,57],[48,39,48,45],[48,46,48,49],[48,50,48,57],[48,58,48,65],[48,66,48,70],[48,71,48,73],[47,58,47,65],[47,66,47,70],[47,71,47,73],[47,74,47,76],[48,0,48,8],[48,9,48,15],[48,16,48,21],[48,22,48,24],[48,25,48,33],[48,34,48,38],[46,74,46,76],[47,0,47,8],[47,9,47,15],[47,16,47,21],[47,22,47,24],[47,25,47,33],[47,34,47,38],[47,39,47,45],[47,46,47,49],[47,50,47,57],[46,39,46,45],[46,46,46,49],[46,50,46,57],[46,58,46,65],[46,66,46,70],[46,71,46,73],[45,58,45,65],[45,66,45,70],[45,71,45,73],[45,74,45,76],[46,0,46,8],[46,9,46,15],[46,16,46,21],[46,22,46,24],[46,25,46,33],[46,34,46,38],[44,74,44,76],[45,0,45,8],[45,9,45,15],[45,16,45,21],[45,22,45,24],[45,25,45,33],[45,34,45,38],[45,39,45,45],[45,46,45,49],[45,50,45,57],[44,39,44,45],[44,46,44,49],[44,50,44,57],[44,58,44,65],[44,66,44,70],[44,71,44,73],[43,58,43,65],[43,66,43,70],[43,71,43,73],[43,74,43,76],[44,0,44,8],[44,9,44,15],[44,16,44,21],[44,22,44,24],[44,25,44,33],[44,34,44,38],[42,74,42,76],[43,0,43,8],[43,9,43,15],[43,16,43,21],[43,22,43,24],[43,25,43,33],[43,34,43,38],[43,39,43,45],[43,46,43,49],[43,50,43,57],[42,39,42,45],[42,46,42,49],[42,50,42,57],[42,58,42,65],[42,66,42,70],[42,71,42,73],[41,58,41,65],[41,66,41,70],[41,71,41,73],[41,74,41,76],[42,0,42,8],[42,9,42,15],[42,16,42,21],[42,22,42,24],[42,25,42,33],[42,34,42,38],[40,74,40,76],[41,0,41,8],[41,9,41,15],[41,16,41,21],[41,22,41,24],[41,25,41,33],[41,34,41,38],[41,39,41,45],[41,46,41,49],[41,50,41,57],[40,39,40,45],[40,46,40,49],[40,50,40,57],[40,58,40,65],[40,66,40,70],[40,71,40,73],[39,58,39,65],[39,66,39,70],[39,71,39,73],[39,74,39,76],[40,0,40,8],[40,9,40,15],[40,16,40,21],[40,22,40,24],[40,25,40,33],[40,34,40,38],[38,74,38,76],[39,0,39,8],[39,9,39,15],[39,16,39,21],[39,22,39,24],[39,25,39,33],[39,34,39,38],[39,39,39,45],[39,46,39,49],[39,50,39,57],[38,39,38,45],[38,46,38,49],[38,50,38,57],[38,58,38,65],[38,66,38,70],[38,71,38,73],[37,58,37,65],[37,66,37,70],[37,71,37,73],[37,74,37,76],[38,0,38,8],[38,9,38,15],[38,16,38,21],[38,22,38,24],[38,25,38,33],[38,34,38,38],[36,74,36,76],[37,0,37,8],[37,9,37,15],[37,16,37,21],[37,22,37,24],[37,25,37,33],[37,34,37,38],[37,39,37,45],[37,46,37,49],[37,50,37,57],[36,39,36,45],[36,46,36,49],[36,50,36,57],[36,58,36,65],[36,66,36,70],[36,71,36,73],[35,58,35,65],[35,66,35,70],[35,71,35,73],[35,74,35,76],[36,0,36,8],[36,9,36,15],[36,16,36,21],[36,22,36,24],[36,25,36,33],[36,34,36,38],[34,74,34,76],[35,0,35,8],[35,9,35,15],[35,16,35,21],[35,22,35,24],[35,25,35,33],[35,34,35,38],[35,39,35,45],[35,46,35,49],[35,50,35,57],[34,39,34,45],[34,46,34,49],[34,50,34,57],[34,58,34,65],[34,66,34,70],[34,71,34,73],[33,58,33,65],[33,66,33,70],[33,71,33,73],[33,74,33,76],[34,0,34,8],[34,9,34,15],[34,16,34,21],[34,22,34,24],[34,25,34,33],[34,34,34,38],[32,74,32,76],[33,0,33,8],[33,9,33,15],[33,16,33,21],[33,22,33,24],[33,25,33,33],[33,34,33,38],[33,39,33,45],[33,46,33,49],[33,50,33,57],[32,39,32,45],[32,46,32,49],[32,50,32,57],[32,58,32,65],[32,66,32,70],[32,71,32,73],[31,58,31,65],[31,66,31,70],[31,71,31,73],[31,74,31,76],[32,0,32,8],[32,9,32,15],[32,16,32,21],[32,22,32,24],[32,25,32,33],[32,34,32,38],[30,74,30,76],[31,0,31,8],[31,9,31,15],[31,16,31,21],[31,22,31,24],[31,25,31,33],[31,34,31,38],[31,39,31,45],[31,46,31,49],[31,50,31,57],[30,39,30,45],[30,46,30,49],[30,50,30,57],[30,58,30,65],[30,66,30,70],[30,71,30,73],[29,58,29,65],[29,66,29,70],[29,71,29,73],[29,74,29,76],[30,0,30,8],[30,9,30,15],[30,16,30,21],[30,22,30,24],[30,25,30,33],[30,34,30,38],[28,74,28,76],[29,0,29,8],[29,9,29,15],[29,16,29,21],[29,22,29,24],[29,25,29,33],[29,34,29,38],[29,39,29,45],[29,46,29,49],[29,50,29,57],[28,39,28,45],[28,46,28,49],[28,50,28,57],[28,58,28,65],[28,66,28,70],[28,71,28,73],[27,58,27,65],[27,66,27,70],[27,71,27,73],[27,74,27,76],[28,0,28,8],[28,9,28,15],[28,16,28,21],[28,22,28,24],[28,25,28,33],[28,34,28,38],[26,74,26,76],[27,0,27,8],[27,9,27,15],[27,16,27,21],[27,22,27,24],[27,25,27,33],[27,34,27,38],[27,39,27,45],[27,46,27,49],[27,50,27,57],[26,39,26,45],[26,46,26,49],[26,50,26,57],[26,58,26,65],[26,66,26,70],[26,71,26,73],[25,58,25,65],[25,66,25,70],[25,71,25,73],[25,74,25,76],[26,0,26,8],[26,9,26,15],[26,16,26,21],[26,22,26,24],[26,25,26,33],[26,34,26,38],[24,74,24,76],[25,0,25,8],[25,9,25,15],[25,16,25,21],[25,22,25,24],[25,25,25,33],[25,34,25,38],[25,39,25,45],[25,46,25,49],[25,50,25,57],[24,39,24,45],[24,46,24,49]],"merged_total":1201,"flags":["merged_cut"]}
[]
[null,null,null,null,"Business Summary"]
[]
[null,null,null,null,null,"Plano/Allen Office Submarket REIS",null,null,null,null,null,null,null,null,null,null,null,null,null,null,null,null,null,null,null,null,null,null,null,null,null,null,null,null,null,null,null,null,null,null,null,null,null,null,null,null,null,null,"Prepared by Esri"]
[]
[]
[]
[]
["Data for all businesses in area"]
["Total Businesses:",null,null,null,null,null,null,null,null,null,null,null,null,null,null,null,null,null,null,null,null,null,null,null,null,null,null,null,null,null,null,null,null,null,null,null,null,null,null,null,null,null,null,null,null,null,null,null,null,null,null,null,null,null,null,null,null,null,null,null,null,null,32913]
["Total Employees:",null,null,null,null,null,null,null,null,null,null,null,null,null,null,null,null,null,null,null,null,null,null,null,null,null,null,null,null,null,null,null,null,null,null,null,null,null,null,null,null,null,null,null,null,null,null,null,null,null,null,null,null,null,null,null,null,null,null,null,null,null,383222]
["Total Residential Population:",null,null,null,null,null,null,null,null,null,null,null,null,null,null,null,null,null,null,null,null,null,null,null,null,null,null,null,null,null,null,null,null,null,null,null,null,null,null,null,null,null,null,null,null,null,null,null,null,null,null,null,null,null,null,null,null,null,null,null,null,null,927506]
["Employee/Residential Population Ratio (per 100 Residents)",null,null,null,null,null,null,null,null,null,null,null,null,null,null,null,null,null,null,null,null,null,null,null,null,null,null,null,null,null,null,null,null,null,null,null,null,null,null,null,null,null,null,null,null,null,null,null,null,null,null,null,null,null,null,null,null,null,null,null,null,null,41]
[null,null,null,null,null,null,null,null,null,null,null,null,null,null,null,null,null,null,null,null,null,null,null,null,null,null,null,null,null,null,null,null,null,null,null,null,null,null,null,null,null,null,null,null,null,null,null,null,null,null,null,null,null,null,null,null,null,null,null,"Businesses",null,null,null,null,null,null,null,null,null,null,null,null,"Employees"]
["by SIC Codes",null,null,null,null,null,null,null,null,null,null,null,null,null,null,null,null,null,null,null,null,null,null,null,null,null,null,null,null,null,null,null,null,null,null,null,null,null,null,null,null,null,null,null,null,null,null,null,null,null,null,null,null,null,null,null,null,"Number",null,null,null,null,null,null,null,"Percent",null,null,null,null,"Number",null,null,null,"Percent"]
["Agriculture & Mining",null,null,null,null,null,null,null,null,null,null,null,null,null,null,null,null,null,null,null,null,null,null,null,null,null,null,null,null,null,null,null,null,null,null,null,null,null,null,null,null,null,null,null,null,null,null,null,null,null,null,null,null,null,null,null,null,null,576,null,null,null,null,null,null,null,1.8,null,null,null,null,5407,null,null,1.4]
["Construction",null,null,null,null,null,null,null,null,null,null,null,null,null,null,null,null,null,null,null,null,null,null,null,null,null,null,null,null,null,null,null,null,null,null,null,null,null,null,null,null,null,null,null,null,null,null,null,null,null,null,null,null,null,null,null,null,null,1698,null,null,null,null,null,null,null,5.2,null,null,null,null,13810,null,null,3.6]
["Manufacturing",null,null,null,null,null,null,null,null,null,null,null,null,null,null,null,null,null,null,null,null,null,null,null,null,null,null,null,null,null,null,null,null,null,null,null,null,null,null,null,null,null,null,null,null,null,null,null,null,null,null,null,null,null,null,null,null,null,615,null,null,null,null,null,null,null,1.9,null,null,null,null,22497,null,null,5.9]
["Transportation",null,null,null,null,null,null,null,null,null,null,null,null,null,null,null,null,null,null,null,null,null,null,null,null,null,null,null,null,null,null,null,null,null,null,null,null,null,null,null,null,null,null,null,null,null,null,null,null,null,null,null,null,null,null,null,null,null,574,null,null,null,null,null,null,null,1.7,null,null,null,null,4497,null,null,1.2]
["Communication",null,null,null,null,null,null,null,null,null,null,null,null,null,null,null,null,null,null,null,null,null,null,null,null,null,null,null,null,null,null,null,null,null,null,null,null,null,null,null,null,null,null,null,null,null,null,null,null,null,null,null,null,null,null,null,null,null,300,null,null,null,null,null,null,null,0.9,null,null,null,null,4826,null,null,1.3]
["Utility",null,null,null,null,null,null,null,null,null,null,null,null,null,null,null,null,null,null,null,null,null,null,null,null,null,null,null,null,null,null,null,null,null,null,null,null,null,null,null,null,null,null,null,null,null,null,null,null,null,null,null,null,null,null,null,null,null,54,null,null,null,null,null,null,null,0.2,null,null,null,null,1082,null,null,0.3]
["Wholesale Trade",null,null,null,null,null,null,null,null,null,null,null,null,null,null,null,null,null,null,null,null,null,null,null,null,null,null,null,null,null,null,null,null,null,null,null,null,null,null,null,null,null,null,null,null,null,null,null,null,null,null,null,null,null,null,null,null,null,590,null,null,null,null,null,null,null,1.8,null,null,null,null,12740,null,null,3.3]
[]
["Retail Trade Summary",null,null,null,null,null,null,null,null,null,null,null,null,null,null,null,null,null,null,null,null,null,null,null,null,null,null,null,null,null,null,null,null,null,null,null,null,null,null,null,null,null,null,null,null,null,null,null,null,null,null,null,null,null,null,null,null,null,6490,null,null,null,null,null,null,null,19.7,null,null,null,null,105240,null,null,27.5]
["Home Improvement",null,null,null,null,null,null,null,null,null,null,null,null,null,null,null,null,null,null,null,null,null,null,null,null,null,null,null,null,null,null,null,null,null,null,null,null,null,null,null,null,null,null,null,null,null,null,null,null,null,null,null,null,null,null,null,null,null,328,null,null,null,null,null,null,null,1,null,null,null,null,4666,null,null,1.2]
["General Merchandise Stores",null,null,null,null,null,null,null,null,null,null,null,null,null,null,null,null,null,null,null,null,null,null,null,null,null,null,null,null,null,null,null,null,null,null,null,null,null,null,null,null,null,null,null,null,null,null,null,null,null,null,null,null,null,null,null,null,null,203,null,null,null,null,null,null,null,0.6,null,null,null,null,14241,null,null,3.7]
["Food Stores",null,null,null,null,null,null,null,null,null,null,null,null,null,null,null,null,null,null,null,null,null,null,null,null,null,null,null,null,null,null,null,null,null,null,null,null,null,null,null,null,null,null,null,null,null,null,null,null,null,null,null,null,null,null,null,null,null,735,null,null,null,null,null,null,null,2.2000000000000002,null,null,null,null,9634,null,null,2.5]
["Auto Dealers, Gas Stations, Auto Aftermarket",null,null,null,null,null,null,null,null,null,null,null,null,null,null,null,null,null,null,null,null,null,null,null,null,null,null,null,null,null,null,null,null,null,null,null,null,null,null,null,null,null,null,null,null,null,null,null,null,null,null,null,null,null,null,null,null,null,456,null,null,null,null,null,null,null,1.4,null,null,null,null,14890,null,null,3.9]
["Apparel & Accessory Stores",null,null,null,null,null,null,null,null,null,null,null,null,null,null,null,null,null,null,null,null,null,null,null,null,null,null,null,null,null,null,null,null,null,null,null,null,null,null,null,null,null,null,null,null,null,null,null,null,null,null,null,null,null,null,null,null,null,514,null,null,null,null,null,null,null,1.6,null,null,null,null,4517,null,null,1.2]
["Furniture & Home Furnishings",null,null,null,null,null,null,null,null,null,null,null,null,null,null,null,null,null,null,null,null,null,null,null,null,null,null,null,null,null,null,null,null,null,null,null,null,null,null,null,null,null,null,null,null,null,null,null,null,null,null,null,null,null,null,null,null,null,421,null,null,null,null,null,null,null,1.3,null,null,null,null,5202,null,null,1.4]
["Eating & Drinking Places",null,null,null,null,null,null,null,null,null,null,null,null,null,null,null,null,null,null,null,null,null,null,null,null,null,null,null,null,null,null,null,null,null,null,null,null,null,null,null,null,null,null,null,null,null,null,null,null,null,null,null,null,null,null,null,null,null,2165,null,null,null,null,null,null,null,6.6,null,null,null,null,38070,null,null,9.9]
["Miscellaneous Retail",null,null,null,null,null,null,null,null,null,null,null,null,null,null,null,null,null,null,null,null,null,null,null,null,null,null,null,null,null,null,null,null,null,null,null,null,null,null,null,null,null,null,null,null,null,null,null,null,null,null,null,null,null,null,null,null,null,1667,null,null,null,null,null,null,null,5.0999999999999996,null,null,null,null,14019,null,null,3.7]
[]
["Finance, Insurance, Real Estate Summary",null,null,null,null,null,null,null,null,null,null,null,null,null,null,null,null,null,null,null,null,null,null,null,null,null,null,null,null,null,null,null,null,null,null,null,null,null,null,null,null,null,null,null,null,null,null,null,null,null,null,null,null,null,null,null,null,null,3696,null,null,null,null,null,null,null,11.2,null,null,null,null,36317,null,null,9.5]
["Banks, Savings & Lending Institutions",null,null,null,null,null,null,null,null,null,null,null,null,null,null,null,null,null,null,null,null,null,null,null,null,null,null,null,null,null,null,null,null,null,null,null,null,null,null,null,null,null,null,null,null,null,null,null,null,null,null,null,null,null,null,null,null,null,673,null,null,null,null,null,null,null,2,null,null,null,null,8047,null,null,2.1]
["Securities Brokers",null,null,null,null,null,null,null,null,null,null,null,null,null,null,null,null,null,null,null,null,null,null,null,null,null,null,null,null,null,null,null,null,null,null,null,null,null,null,null,null,null,null,null,null,null,null,null,null,null,null,null,null,null,null,null,null,null,620,null,null,null,null,null,null,null,1.9,null,null,null,null,3891,null,null,1]
["Insurance Carriers & Agents",null,null,null,null,null,null,null,null,null,null,null,null,null,null,null,null,null,null,null,null,null,null,null,null,null,null,null,null,null,null,null,null,null,null,null,null,null,null,null,null,null,null,null,null,null,null,null,null,null,null,null,null,null,null,null,null,null,724,null,null,null,null,null,null,null,2.2000000000000002,null,null,null,null,10130,null,null,2.6]
["Real Estate, Holding, Other Investment Offices",null,null,null,null,null,null,null,null,null,null,null,null,null,null,null,null,null,null,null,null,null,null,null,null,null,null,null,null,null,null,null,null,null,null,null,null,null,null,null,null,null,null,null,null,null,null,null,null,null,null,null,null,null,null,null,null,null,1679,null,null,null,null,null,null,null,5.0999999999999996,null,null,null,null,14248,null,null,3.7]
[]
["Services Summary",null,null,null,null,null,null,null,null,null,null,null,null,null,null,null,null,null,null,null,null,null,null,null,null,null,null,null,null,null,null,null,null,null,null,null,null,null,null,null,null,null,null,null,null,null,null,null,null,null,null,null,null,null,null,null,null,null,13376,null,null,null,null,null,null,null,40.6,null,null,null,null,166844,null,null,43.5]
["Hotels & Lodging",null,null,null,null,null,null,null,null,null,null,null,null,null,null,null,null,null,null,null,null,null,null,null,null,null,null,null,null,null,null,null,null,null,null,null,null,null,null,null,null,null,null,null,null,null,null,null,null,null,null,null,null,null,null,null,null,null,189,null,null,null,null,null,null,null,0.6,null,null,null,null,5624,null,null,1.5]
["Automotive Services",null,null,null,null,null,null,null,null,null,null,null,null,null,null,null,null,null,null,null,null,null,null,null,null,null,null,null,null,null,null,null,null,null,null,null,null,null,null,null,null,null,null,null,null,null,null,null,null,null,null,null,null,null,null,null,null,null,588,null,null,null,null,null,null,null,1.8,null,null,null,null,4394,null,null,1.1000000000000001]
["Motion Pictures & Amusements",null,null,null,null,null,null,null,null,null,null,null,null,null,null,null,null,null,null,null,null,null,null,null,null,null,null,null,null,null,null,null,null,null,null,null,null,null,null,null,null,null,null,null,null,null,null,null,null,null,null,null,null,null,null,null,null,null,948,null,null,null,null,null,null,null,2.9,null,null,null,null,12327,null,null,3.2]
["Health Services",null,null,null,null,null,null,null,null,null,null,null,null,null,null,null,null,null,null,null,null,null,null,null,null,null,null,null,null,null,null,null,null,null,null,null,null,null,null,null,null,null,null,null,null,null,null,null,null,null,null,null,null,null,null,null,null,null,3013,null,null,null,null,null,null,null,9.1999999999999993,null,null,null,null,37690,null,null,9.8000000000000007]
["Legal Services",null,null,null,null,null,null,null,null,null,null,null,null,null,null,null,null,null,null,null,null,null,null,null,null,null,null,null,null,null,null,null,null,null,null,null,null,null,null,null,null,null,null,null,null,null,null,null,null,null,null,null,null,null,null,null,null,null,678,null,null,null,null,null,null,null,2.1,null,null,null,null,3337,null,null,0.9]
["Education Institutions & Libraries",null,null,null,null,null,null,null,null,null,null,null,null,null,null,null,null,null,null,null,null,null,null,null,null,null,null,null,null,null,null,null,null,null,null,null,null,null,null,null,null,null,null,null,null,null,null,null,null,null,null,null,null,null,null,null,null,null,649,null,null,null,null,null,null,null,2,null,null,null,null,27236,null,null,7.1]
["Other Services",null,null,null,null,null,null,null,null,null,null,null,null,null,null,null,null,null,null,null,null,null,null,null,null,null,null,null,null,null,null,null,null,null,null,null,null,null,null,null,null,null,null,null,null,null,null,null,null,null,null,null,null,null,null,null,null,null,7312,null,null,null,null,null,null,null,22.2,null,null,null,null,76236,null,null,19.899999999999999]
[]
["Government",null,null,null,null,null,null,null,null,null,null,null,null,null,null,null,null,null,null,null,null,null,null,null,null,null,null,null,null,null,null,null,null,null,null,null,null,null,null,null,null,null,null,null,null,null,null,null,null,null,null,null,null,null,null,null,null,null,249,null,null,null,null,null,null,null,0.8,null,null,null,null,7526,null,null,2]
[]
["Unclassified Establishments",null,null,null,null,null,null,null,null,null,null,null,null,null,null,null,null,null,null,null,null,null,null,null,null,null,null,null,null,null,null,null,null,null,null,null,null,null,null,null,null,null,null,null,null,null,null,null,null,null,null,null,null,null,null,null,null,null,4694,null,null,null,null,null,null,null,14.3,null,null,null,null,2434,null,null,0.6]
[]
["Totals",null,null,null,null,null,null,null,null,null,null,null,null,null,null,null,null,null,null,null,null,null,null,null,null,null,null,null,null,null,null,null,null,null,null,null,null,null,null,null,null,null,null,null,null,null,null,null,null,null,null,null,null,null,null,null,null,null,32913,null,null,null,null,null,null,null,"100.0%",null,null,null,null,383222,null,null,"100.0%"]
[]
[null,"Source:  Copyright 2021 Data Axle, Inc. All rights reserved. Esri Total Residential Population forecasts for 2021.\n\n\n"]
[null,"Date Note: Data on the Business Summary report is calculated using \n\n",null,null,null,null,null,null,null,null,null,null,null,"Esri’s Data allocation method",null,null,null,null,null,null,null,null,null,"which uses census block groups to allocate business summary data to custom areas."]
[]
[]
[null,null,null,null,null,null,null,null,null,null,null,null,null,null,"August 16, 2021"]
[]
[null,null,"©2021 Esri",null,null,null,null,null,null,null,null,null,null,null,null,null,null,null,null,null,null,null,null,null,null,null,null,null,null,null,null,null,null,null,null,null,null,null,null,null,null,null,null,null,null,null,null,null,null,null,null,null,"Page 1 of 2"]
[]
[null,null,null,null,"Business Summary"]
[]
[null,null,null,null,null,"Plano/Allen Office Submarket REIS",null,null,null,null,null,null,null,null,null,null,null,null,null,null,null,null,null,null,null,null,null,null,null,null,null,null,null,null,null,null,null,null,null,null,null,null,null,null,null,null,null,null,"Prepared by Esri"]
[]
[]
[]
[]
[null,null,null,null,null,null,null,null,null,null,null,null,null,null,null,null,null,null,null,null,null,null,null,null,null,null,null,null,null,null,null,null,null,null,null,null,null,null,null,null,null,null,null,null,null,null,null,null,null,null,null,null,null,null,null,null,null,"Businesses",null,null,null,null,null,null,null,null,null,null,null,"Employees"]
["by NAICS Codes",null,null,null,null,null,null,null,null,null,null,null,null,null,null,null,null,null,null,null,null,null,null,null,null,null,null,null,null,null,null,null,null,null,null,null,null,null,null,null,null,null,null,null,null,null,null,null,null,null,null,null,null,null,null,null,null,null,"Number",null,null,null,null,null,null,null,"Percent",null,null,null,null,"Number",null,null,"Percent"]
["Agriculture, Forestry, Fishing & Hunting",null,null,null,null,null,null,null,null,null,null,null,null,null,null,null,null,null,null,null,null,null,null,null,null,null,null,null,null,null,null,null,null,null,null,null,null,null,null,null,null,null,null,null,null,null,null,null,null,null,null,null,null,null,null,null,null,null,null,null,79,null,null,null,null,null,0.2,null,null,null,null,679,null,null,0.2]
["Mining",null,null,null,null,null,null,null,null,null,null,null,null,null,null,null,null,null,null,null,null,null,null,null,null,null,null,null,null,null,null,null,null,null,null,null,null,null,null,null,null,null,null,null,null,null,null,null,null,null,null,null,null,null,null,null,null,null,null,null,65,null,null,null,null,null,0.2,null,null,null,null,1293,null,null,0.3]
["Utilities",null,null,null,null,null,null,null,null,null,null,null,null,null,null,null,null,null,null,null,null,null,null,null,null,null,null,null,null,null,null,null,null,null,null,null,null,null,null,null,null,null,null,null,null,null,null,null,null,null,null,null,null,null,null,null,null,null,null,null,24,null,null,null,null,null,0.1,null,null,null,null,577,null,null,0.2]
["Construction",null,null,null,null,null,null,null,null,null,null,null,null,null,null,null,null,null,null,null,null,null,null,null,null,null,null,null,null,null,null,null,null,null,null,null,null,null,null,null,null,null,null,null,null,null,null,null,null,null,null,null,null,null,null,null,null,null,null,null,1813,null,null,null,null,null,5.5,null,null,null,null,14606,null,null,3.8]
["Manufacturing",null,null,null,null,null,null,null,null,null,null,null,null,null,null,null,null,null,null,null,null,null,null,null,null,null,null,null,null,null,null,null,null,null,null,null,null,null,null,null,null,null,null,null,null,null,null,null,null,null,null,null,null,null,null,null,null,null,null,null,724,null,null,null,null,null,2.2000000000000002,null,null,null,null,22994,null,null,6]
["Wholesale Trade",null,null,null,null,null,null,null,null,null,null,null,null,null,null,null,null,null,null,null,null,null,null,null,null,null,null,null,null,null,null,null,null,null,null,null,null,null,null,null,null,null,null,null,null,null,null,null,null,null,null,null,null,null,null,null,null,null,null,null,560,null,null,null,null,null,1.7,null,null,null,null,12615,null,null,3.3]
["Retail Trade",null,null,null,null,null,null,null,null,null,null,null,null,null,null,null,null,null,null,null,null,null,null,null,null,null,null,null,null,null,null,null,null,null,null,null,null,null,null,null,null,null,null,null,null,null,null,null,null,null,null,null,null,null,null,null,null,null,null,null,4087,null,null,null,null,null,12.4,null,null,null,null,65767,null,null,17.2]
["Motor Vehicle & Parts Dealers",null,null,null,null,null,null,null,null,null,null,null,null,null,null,null,null,null,null,null,null,null,null,null,null,null,null,null,null,null,null,null,null,null,null,null,null,null,null,null,null,null,null,null,null,null,null,null,null,null,null,null,null,null,null,null,null,null,null,null,368,null,null,null,null,null,1.1000000000000001,null,null,null,null,14456,null,null,3.8]
["Furniture & Home Furnishings Stores",null,null,null,null,null,null,null,null,null,null,null,null,null,null,null,null,null,null,null,null,null,null,null,null,null,null,null,null,null,null,null,null,null,null,null,null,null,null,null,null,null,null,null,null,null,null,null,null,null,null,null,null,null,null,null,null,null,null,null,203,null,null,null,null,null,0.6,null,null,null,null,2364,null,null,0.6]
["Electronics & Appliance Stores",null,null,null,null,null,null,null,null,null,null,null,null,null,null,null,null,null,null,null,null,null,null,null,null,null,null,null,null,null,null,null,null,null,null,null,null,null,null,null,null,null,null,null,null,null,null,null,null,null,null,null,null,null,null,null,null,null,null,null,187,null,null,null,null,null,0.6,null,null,null,null,2732,null,null,0.7]
["Bldg Material & Garden Equipment & Supplies Dealers",null,null,null,null,null,null,null,null,null,null,null,null,null,null,null,null,null,null,null,null,null,null,null,null,null,null,null,null,null,null,null,null,null,null,null,null,null,null,null,null,null,null,null,null,null,null,null,null,null,null,null,null,null,null,null,null,null,null,null,329,null,null,null,null,null,1,null,null,null,null,4668,null,null,1.2]
["Food & Beverage Stores",null,null,null,null,null,null,null,null,null,null,null,null,null,null,null,null,null,null,null,null,null,null,null,null,null,null,null,null,null,null,null,null,null,null,null,null,null,null,null,null,null,null,null,null,null,null,null,null,null,null,null,null,null,null,null,null,null,null,null,492,null,null,null,null,null,1.5,null,null,null,null,8249,null,null,2.2000000000000002]
["Health & Personal Care Stores",null,null,null,null,null,null,null,null,null,null,null,null,null,null,null,null,null,null,null,null,null,null,null,null,null,null,null,null,null,null,null,null,null,null,null,null,null,null,null,null,null,null,null,null,null,null,null,null,null,null,null,null,null,null,null,null,null,null,null,556,null,null,null,null,null,1.7,null,null,null,null,5699,null,null,1.5]
["Gasoline Stations",null,null,null,null,null,null,null,null,null,null,null,null,null,null,null,null,null,null,null,null,null,null,null,null,null,null,null,null,null,null,null,null,null,null,null,null,null,null,null,null,null,null,null,null,null,null,null,null,null,null,null,null,null,null,null,null,null,null,null,88,null,null,null,null,null,0.3,null,null,null,null,434,null,null,0.1]
["Clothing & Clothing Accessories Stores",null,null,null,null,null,null,null,null,null,null,null,null,null,null,null,null,null,null,null,null,null,null,null,null,null,null,null,null,null,null,null,null,null,null,null,null,null,null,null,null,null,null,null,null,null,null,null,null,null,null,null,null,null,null,null,null,null,null,null,630,null,null,null,null,null,1.9,null,null,null,null,5001,null,null,1.3]
["Sport Goods, Hobby, Book, & Music Stores",null,null,null,null,null,null,null,null,null,null,null,null,null,null,null,null,null,null,null,null,null,null,null,null,null,null,null,null,null,null,null,null,null,null,null,null,null,null,null,null,null,null,null,null,null,null,null,null,null,null,null,null,null,null,null,null,null,null,null,236,null,null,null,null,null,0.7,null,null,null,null,3058,null,null,0.8]
["General Merchandise Stores",null,null,null,null,null,null,null,null,null,null,null,null,null,null,null,null,null,null,null,null,null,null,null,null,null,null,null,null,null,null,null,null,null,null,null,null,null,null,null,null,null,null,null,null,null,null,null,null,null,null,null,null,null,null,null,null,null,null,null,203,null,null,null,null,null,0.6,null,null,null,null,14241,null,null,3.7]
["Miscellaneous Store Retailers",null,null,null,null,null,null,null,null,null,null,null,null,null,null,null,null,null,null,null,null,null,null,null,null,null,null,null,null,null,null,null,null,null,null,null,null,null,null,null,null,null,null,null,null,null,null,null,null,null,null,null,null,null,null,null,null,null,null,null,559,null,null,null,null,null,1.7,null,null,null,null,4563,null,null,1.2]
["Nonstore Retailers",null,null,null,null,null,null,null,null,null,null,null,null,null,null,null,null,null,null,null,null,null,null,null,null,null,null,null,null,null,null,null,null,null,null,null,null,null,null,null,null,null,null,null,null,null,null,null,null,null,null,null,null,null,null,null,null,null,null,null,237,null,null,null,null,null,0.7,null,null,null,null,302,null,null,0.1]
["Transportation & Warehousing",null,null,null,null,null,null,null,null,null,null,null,null,null,null,null,null,null,null,null,null,null,null,null,null,null,null,null,null,null,null,null,null,null,null,null,null,null,null,null,null,null,null,null,null,null,null,null,null,null,null,null,null,null,null,null,null,null,null,null,372,null,null,null,null,null,1.1000000000000001,null,null,null,null,3192,null,null,0.8]
["Information",null,null,null,null,null,null,null,null,null,null,null,null,null,null,null,null,null,null,null,null,null,null,null,null,null,null,null,null,null,null,null,null,null,null,null,null,null,null,null,null,null,null,null,null,null,null,null,null,null,null,null,null,null,null,null,null,null,null,null,832,null,null,null,null,null,2.5,null,null,null,null,19093,null,null,5]
["Finance & Insurance",null,null,null,null,null,null,null,null,null,null,null,null,null,null,null,null,null,null,null,null,null,null,null,null,null,null,null,null,null,null,null,null,null,null,null,null,null,null,null,null,null,null,null,null,null,null,null,null,null,null,null,null,null,null,null,null,null,null,null,2048,null,null,null,null,null,6.2,null,null,null,null,22282,null,null,5.8]
["Central Bank/Credit Intermediation & Related Activities",null,null,null,null,null,null,null,null,null,null,null,null,null,null,null,null,null,null,null,null,null,null,null,null,null,null,null,null,null,null,null,null,null,null,null,null,null,null,null,null,null,null,null,null,null,null,null,null,null,null,null,null,null,null,null,null,null,null,null,675,null,null,null,null,null,2.1,null,null,null,null,8051,null,null,2.1]
["Securities, Commodity Contracts & Other Financial Investments & Other Related Activities",null,null,null,null,null,null,null,null,null,null,null,null,null,null,null,null,null,null,null,null,null,null,null,null,null,null,null,null,null,null,null,null,null,null,null,null,null,null,null,null,null,null,null,null,null,null,null,null,null,null,null,null,null,null,null,null,null,null,null,643,null,null,null,null,null,2,null,null,null,null,4034,null,null,1.1000000000000001]
["Insurance Carriers & Related Activities; Funds, Trusts & Other Financial Vehicles",null,null,null,null,null,null,null,null,null,null,null,null,null,null,null,null,null,null,null,null,null,null,null,null,null,null,null,null,null,null,null,null,null,null,null,null,null,null,null,null,null,null,null,null,null,null,null,null,null,null,null,null,null,null,null,null,null,null,null,730,null,null,null,null,null,2.2000000000000002,null,null,null,null,10197,null,null,2.7]
["Real Estate, Rental & Leasing",null,null,null,null,null,null,null,null,null,null,null,null,null,null,null,null,null,null,null,null,null,null,null,null,null,null,null,null,null,null,null,null,null,null,null,null,null,null,null,null,null,null,null,null,null,null,null,null,null,null,null,null,null,null,null,null,null,null,null,1740,null,null,null,null,null,5.3,null,null,null,null,13709,null,null,3.6]
["Professional, Scientific & Tech Services",null,null,null,null,null,null,null,null,null,null,null,null,null,null,null,null,null,null,null,null,null,null,null,null,null,null,null,null,null,null,null,null,null,null,null,null,null,null,null,null,null,null,null,null,null,null,null,null,null,null,null,null,null,null,null,null,null,null,null,3497,null,null,null,null,null,10.6,null,null,null,null,32640,null,null,8.5]
["Legal Services",null,null,null,null,null,null,null,null,null,null,null,null,null,null,null,null,null,null,null,null,null,null,null,null,null,null,null,null,null,null,null,null,null,null,null,null,null,null,null,null,null,null,null,null,null,null,null,null,null,null,null,null,null,null,null,null,null,null,null,784,null,null,null,null,null,2.4,null,null,null,null,4607,null,null,1.2]
["Management of Companies & Enterprises",null,null,null,null,null,null,null,null,null,null,null,null,null,null,null,null,null,null,null,null,null,null,null,null,null,null,null,null,null,null,null,null,null,null,null,null,null,null,null,null,null,null,null,null,null,null,null,null,null,null,null,null,null,null,null,null,null,null,null,161,null,null,null,null,null,0.5,null,null,null,null,699,null,null,0.2]
["Administrative & Support & Waste Management & Remediation Services",null,null,null,null,null,null,null,null,null,null,null,null,null,null,null,null,null,null,null,null,null,null,null,null,null,null,null,null,null,null,null,null,null,null,null,null,null,null,null,null,null,null,null,null,null,null,null,null,null,null,null,null,null,null,null,null,null,null,null,1160,null,null,null,null,null,3.5,null,null,null,null,9409,null,null,2.5]
["Educational Services",null,null,null,null,null,null,null,null,null,null,null,null,null,null,null,null,null,null,null,null,null,null,null,null,null,null,null,null,null,null,null,null,null,null,null,null,null,null,null,null,null,null,null,null,null,null,null,null,null,null,null,null,null,null,null,null,null,null,null,891,null,null,null,null,null,2.7,null,null,null,null,28195,null,null,7.4]
["Health Care & Social Assistance",null,null,null,null,null,null,null,null,null,null,null,null,null,null,null,null,null,null,null,null,null,null,null,null,null,null,null,null,null,null,null,null,null,null,null,null,null,null,null,null,null,null,null,null,null,null,null,null,null,null,null,null,null,null,null,null,null,null,null,3633,null,null,null,null,null,11,null,null,null,null,46998,null,null,12.3]
["Arts, Entertainment & Recreation",null,null,null,null,null,null,null,null,null,null,null,null,null,null,null,null,null,null,null,null,null,null,null,null,null,null,null,null,null,null,null,null,null,null,null,null,null,null,null,null,null,null,null,null,null,null,null,null,null,null,null,null,null,null,null,null,null,null,null,673,null,null,null,null,null,2,null,null,null,null,10093,null,null,2.6]
["Accommodation & Food Services",null,null,null,null,null,null,null,null,null,null,null,null,null,null,null,null,null,null,null,null,null,null,null,null,null,null,null,null,null,null,null,null,null,null,null,null,null,null,null,null,null,null,null,null,null,null,null,null,null,null,null,null,null,null,null,null,null,null,null,2462,null,null,null,null,null,7.5,null,null,null,null,44288,null,null,11.6]
["Accommodation",null,null,null,null,null,null,null,null,null,null,null,null,null,null,null,null,null,null,null,null,null,null,null,null,null,null,null,null,null,null,null,null,null,null,null,null,null,null,null,null,null,null,null,null,null,null,null,null,null,null,null,null,null,null,null,null,null,null,null,189,null,null,null,null,null,0.6,null,null,null,null,5624,null,null,1.5]
["Food Services & Drinking Places",null,null,null,null,null,null,null,null,null,null,null,null,null,null,null,null,null,null,null,null,null,null,null,null,null,null,null,null,null,null,null,null,null,null,null,null,null,null,null,null,null,null,null,null,null,null,null,null,null,null,null,null,null,null,null,null,null,null,null,2273,null,null,null,null,null,6.9,null,null,null,null,38664,null,null,10.1]
["Other Services (except Public Administration)",null,null,null,null,null,null,null,null,null,null,null,null,null,null,null,null,null,null,null,null,null,null,null,null,null,null,null,null,null,null,null,null,null,null,null,null,null,null,null,null,null,null,null,null,null,null,null,null,null,null,null,null,null,null,null,null,null,null,null,3151,null,null,null,null,null,9.6,null,null,null,null,24121,null,null,6.3]
["Automotive Repair & Maintenance",null,null,null,null,null,null,null,null,null,null,null,null,null,null,null,null,null,null,null,null,null,null,null,null,null,null,null,null,null,null,null,null,null,null,null,null,null,null,null,null,null,null,null,null,null,null,null,null,null,null,null,null,null,null,null,null,null,null,null,490,null,null,null,null,null,1.5,null,null,null,null,3859,null,null,1]
["Public Administration",null,null,null,null,null,null,null,null,null,null,null,null,null,null,null,null,null,null,null,null,null,null,null,null,null,null,null,null,null,null,null,null,null,null,null,null,null,null,null,null,null,null,null,null,null,null,null,null,null,null,null,null,null,null,null,null,null,null,null,250,null,null,null,null,null,0.8,null,null,null,null,7546,null,null,2]
[]
["Unclassified Establishments",null,null,null,null,null,null,null,null,null,null,null,null,null,null,null,null,null,null,null,null,null,null,null,null,null,null,null,null,null,null,null,null,null,null,null,null,null,null,null,null,null,null,null,null,null,null,null,null,null,null,null,null,null,null,null,null,null,null,null,4692,null,null,null,null,null,14.3,null,null,null,null,2426,null,null,0.6]
[]
["Total",null,null,null,null,null,null,null,null,null,null,null,null,null,null,null,null,null,null,null,null,null,null,null,null,null,null,null,null,null,null,null,null,null,null,null,null,null,null,null,null,null,null,null,null,null,null,null,null,null,null,null,null,null,null,null,null,null,null,null,32913,null,null,null,null,null,"100.0%",null,null,null,null,383222,null,null,"100.0%"]
[]
[null,"Source:  Copyright 2021 Data Axle, Inc. All rights reserved. Esri Total Residential Population forecasts for 2021.\n\n\n"]
[null,"Date Note: Data on the Business Summary report is calculated using \n\n",null,null,null,null,null,null,null,null,null,null,null,"Esri’s Data allocation method",null,null,null,null,null,null,null,null,null,"which uses census block groups to allocate business summary data to custom areas."]
[]
[]
[null,null,null,null,null,null,null,null,null,null,null,null,null,null,"August 16, 2021"]
[]
[null,null,"©2021 Esri",null,null,null,null,null,null,null,null,null,null,null,null,null,null,null,null,null,null,null,null,null,null,null,null,null,null,null,null,null,null,null,null,null,null,null,null,null,null,null,null,null,null,null,null,null,null,null,null,null,"Page 2 of 2"]

{"sheet":"Executive Summary","index":3,"n_rows":107,"n_cols":24,"rows_kept":107,"cut":false,"hidden":false,"merged":[[103,0,103,31],[104,2,104,3],[104,5,104,30],[98,0,98,2],[98,3,98,25],[100,0,100,31],[101,1,101,24],[102,0,102,31],[97,0,97,2],[97,3,97,7],[97,8,97,12],[97,13,97,19],[97,20,97,25],[96,0,96,2],[96,3,96,7],[96,8,96,12],[96,13,96,19],[96,20,96,25],[95,0,95,2],[95,3,95,7],[95,8,95,12],[95,13,95,19],[95,20,95,25],[94,0,94,2],[94,3,94,7],[94,8,94,12],[94,13,94,19],[94,20,94,25],[93,0,93,2],[93,3,93,7],[93,8,93,12],[93,13,93,19],[93,20,93,25],[92,0,92,2],[92,3,92,7],[92,8,92,12],[92,13,92,19],[92,20,92,25],[91,0,91,2],[91,3,91,7],[91,8,91,12],[91,13,91,19],[91,20,91,25],[90,0,90,2],[90,3,90,7],[90,8,90,12],[90,13,90,19],[90,20,90,25],[89,0,89,2],[89,3,89,7],[89,8,89,12],[89,13,89,19],[89,20,89,25],[88,0,88,2],[88,3,88,7],[88,8,88,12],[88,13,88,19],[88,20,88,25],[87,0,87,2],[87,3,87,7],[87,8,87,12],[87,13,87,19],[87,20,87,25],[86,0,86,2],[86,3,86,7],[86,8,86,12],[86,13,86,19],[86,20,86,25],[85,0,85,2],[85,3,85,7],[85,8,85,12],[85,13,85,19],[85,20,85,25],[84,0,84,2],[84,3,84,7],[84,8,84,12],[84,13,84,19],[84,20,84,25],[83,0,83,2],[83,3,83,7],[83,8,83,12],[83,13,83,19],[83,20,83,25],[82,0,82,2],[82,3,82,7],[82,8,82,12],[82,13,82,19],[82,20,82,25],[81,0,81,2],[81,3,81,7],[81,8,81,12],[81,13,81,19],[81,20,81,25],[76,0,76,2],[76,3,76,29],[78,0,78,2],[78,3,78,26],[79,0,79,2],[79,3,79,29],[75,0,75,2],[75,3,75,8],[75,9,75,13],[75,14,75,20],[75,21,75,27],[74,0,74,2],[74,3,74,8],[74,9,74,13],[74,14,74,20],[74,21,74,27],[71,0,71,2],[71,3,71,29],[73,0,73,2],[73,3,73,8],[73,9,73,13],[73,14,73,20],[73,21,73,27],[70,0,70,2],[70,3,70,9],[70,10,70,14],[70,15,70,21],[70,22,70,28],[69,0,69,2],[69,3,69,9],[69,10,69,14],[69,15,69,21],[69,22,69,28],[66,0,66,2],[66,3,66,29],[68,0,68,2],[68,3,68,9],[68,10,68,14],[68,15,68,21],[68,22,68,28],[65,0,65,2],[65,3,65,9],[65,10,65,14],[65,15,65,21],[65,22,65,28],[64,0,64,2],[64,3,64,9],[64,10,64,14],[64,15,64,21],[64,22,64,28],[62,0,62,2],[62,3,62,29],[63,0,63,2],[63,3,63,9],[63,10,63,14],[63,15,63,21],[63,22,63,28],[60,0,60,2],[60,3,60,29],[61,0,61,2],[61,3,61,9],[61,10,61,14],[61,15,61,21],[61,22,61,28],[58,0,58,31],[59,0,59,2],[59,3,59,10],[59,11,59,15],[59,16,59,23],[59,24,59,26],[54,7,54,16],[54,17,54,31],[55,7,55,18],[55,19,55,31],[56,7,56,18],[56,19,56,31],[51,7,51,16],[51,17,51,18],[51,19,51,31],[52,6,52,31],[53,7,53,16],[53,17,53,18],[53,19,53,31],[50,2,50,3],[50,5,50,11],[50,12,50,17],[50,18,50,22],[50,23,50,30],[47,0,47,31],[48,2,48,3],[48,5,48,30],[49,2,49,3],[49,5,49,22],[49,23,49,30],[43,0,43,2],[43,3,43,28],[44,0,44,31],[45,1,45,24],[46,0,46,31],[42,0,42,2],[42,3,42,9],[42,10,42,14],[42,15,42,21],[42,22,42,28],[41,0,41,2],[41,3,41,9],[41,10,41,14],[41,15,41,21],[41,22,41,28],[40,0,40,2],[40,3,40,9],[40,10,40,14],[40,15,40,21],[40,22,40,28],[39,0,39,2],[39,3,39,9],[39,10,39,14],[39,15,39,21],[39,22,39,28],[38,0,38,2],[38,3,38,9],[38,10,38,14],[38,15,38,21],[38,22,38,28],[37,0,37,2],[37,3,37,9],[37,10,37,14],[37,15,37,21],[37,22,37,28],[36,0,36,2],[36,3,36,9],[36,10,36,14],[36,15,36,21],[36,22,36,28],[35,0,35,2],[35,3,35,9],[35,10,35,14],[35,15,35,21],[35,22,35,28],[32,0,32,2],[32,3,32,28],[33,0,33,2],[33,3,33,29],[34,0,34,2],[34,3,34,9],[34,10,34,14],[34,15,34,21],[34,22,34,28],[31,0,31,2],[31,3,31,9],[31,10,31,14],[31,15,31,21],[31,22,31,28],[30,0,30,2],[30,3,30,9],[30,10,30,14],[30,15,30,21],[30,22,30,28],[29,0,29,2],[29,3,29,9],[29,10,29,14],[29,15,29,21],[29,22,29,28],[28,0,28,2],[28,3,28,9],[28,10,28,14],[28,15,28,21],[28,22,28,28],[27,0,27,2],[27,3,27,9],[27,10,27,14],[27,15,27,21],[27,22,27,28],[26,0,26,2],[26,3,26,9],[26,10,26,14],[26,15,26,21],[26,22,26,28],[25,0,25,2],[25,3,25,9],[25,10,25,14],[25,15,25,21],[25,22,25,28],[23,0,23,2],[23,3,23,29],[24,0,24,2],[24,3,24,9],[24,10,24,14],[24,15,24,21],[24,22,24,28],[20,0,20,2],[20,3,20,28],[21,0,21,2],[21,3,21,29],[22,0,22,2],[22,3,22,28],[19,0,19,2],[19,3,19,9],[19,10,19,14],[19,15,19,21],[19,22,19,28],[18,0,18,2],[18,3,18,9],[18,10,18,14],[18,15,18,21],[18,22,18,28],[17,0,17,2],[17,3,17,9],[17,10,17,14],[17,15,17,21],[17,22,17,28],[16,0,16,2],[16,3,16,9],[16,10,16,14],[16,15,16,21],[16,22,16,28],[15,0,15,2],[15,3,15,9],[15,10,15,14],[15,15,15,21],[15,22,15,28],[14,0,14,2],[14,3,14,9],[14,10,14,14],[14,15,14,21],[14,22,14,28],[13,0,13,2],[13,3,13,9],[13,10,13,14],[13,15,13,21],[13,22,13,28],[12,0,12,2],[12,3,12,9],[12,10,12,14],[12,15,12,21],[12,22,12,28],[11,0,11,2],[11,3,11,9],[11,10,11,14],[11,15,11,21],[11,22,11,28],[9,0,9,2],[9,3,9,29],[10,0,10,2],[10,3,10,9],[10,10,10,14],[10,15,10,21],[10,22,10,28],[7,0,7,31],[8,0,8,2],[8,3,8,10],[8,11,8,15],[8,16,8,23],[8,24,8,26],[3,7,3,16],[3,17,3,31],[4,7,4,18],[4,19,4,31],[5,7,5,18],[5,19,5,31],[0,7,0,16],[0,17,0,18],[0,19,0,31],[1,6,1,31],[2,7,2,16],[2,17,2,18],[2,19,2,31],[105,2,105,3],[105,5,105,22],[105,23,105,30],[106,2,106,3],[106,5,106,11],[106,12,106,17],[106,18,106,22],[106,23,106,30]]}
[]
[null,null,null,null,null,null,"Executive Summary"]
[]
[null,null,null,null,null,null,null,"Plano/Allen Office Submarket REIS",null,null,null,null,null,null,null,null,null,"Prepared by Esri"]
[]
[]
[]
[]
[]
[null,null,null,"Population"]
[null,null,null,"2000 Population",null,null,null,null,null,null,null,null,null,null,null,null,null,null,null,null,null,null,441471]
[null,null,null,"2010 Population",null,null,null,null,null,null,null,null,null,null,null,null,null,null,null,null,null,null,685087]
[null,null,null,"2021 Population",null,null,null,null,null,null,null,null,null,null,null,null,null,null,null,null,null,null,927506]
[null,null,null,"2026 Population",null,null,null,null,null,null,null,null,null,null,null,null,null,null,null,null,null,null,1052042]
[null,null,null,"2000-2010 Annual Rate",null,null,null,null,null,null,null,null,null,null,null,null,null,null,null,null,null,null,4.49]
[null,null,null,"2010-2021 Annual Rate",null,null,null,null,null,null,null,null,null,null,null,null,null,null,null,null,null,null,2.73]
[null,null,null,"2021-2026 Annual Rate",null,null,null,null,null,null,null,null,null,null,null,null,null,null,null,null,null,null,2.5499999999999998]
[null,null,null,"2021 Male Population",null,null,null,null,null,null,null,null,null,null,null,null,null,null,null,null,null,null,48.9]
[null,null,null,"2021 Female Population",null,null,null,null,null,null,null,null,null,null,null,null,null,null,null,null,null,null,51.1]
[null,null,null,"2021 Median Age",null,null,null,null,null,null,null,null,null,null,null,null,null,null,null,null,null,null,36.5]
[null,null,null,"In the identified area, the current year population is 927,506. In 2010, the Census count in the area was 685,087.  The rate of change since 2010 was 2.73% annually. The five-year projection for the population in the area is 1,052,042 representing a change of 2.55% annually from 2021 to 2026. Currently, the population is 48.9% male and 51.1% female. "]
[null,null,null,"Median Age\n"]
[null,null,null,"The median age in this area is 36.5, compared to U.S. median age of 38.5."]
[null,null,null,"Race and Ethnicity\n"]
[null,null,null,"2021 White Alone\n",null,null,null,null,null,null,null,null,null,null,null,null,null,null,null,null,null,null,59.1]
[null,null,null,"2021 Black Alone\n",null,null,null,null,null,null,null,null,null,null,null,null,null,null,null,null,null,null,11.4]
[null,null,null,"2021 American Indian/Alaska Native Alone\n",null,null,null,null,null,null,null,null,null,null,null,null,null,null,null,null,null,null,0.5]
[null,null,null,"2021 Asian Alone\n",null,null,null,null,null,null,null,null,null,null,null,null,null,null,null,null,null,null,20.100000000000001]
[null,null,null,"2021 Pacific Islander Alone\n",null,null,null,null,null,null,null,null,null,null,null,null,null,null,null,null,null,null,0.1]
[null,null,null,"2021 Other Race\n",null,null,null,null,null,null,null,null,null,null,null,null,null,null,null,null,null,null,5.3]
[null,null,null,"2021 Two or More Races\n",null,null,null,null,null,null,null,null,null,null,null,null,null,null,null,null,null,null,3.7]
[null,null,null,"2021 Hispanic Origin (Any Race)\n",null,null,null,null,null,null,null,null,null,null,null,null,null,null,null,null,null,null,15.1]
[null,null,null,"Persons of Hispanic origin represent 15.1% of the population in the identified area compared to 18.9% of the U.S. population.  Persons of Hispanic Origin may be of any race. The Diversity Index, which measures the probability that two people from the same area will be from different race/ethnic groups, is 70.1 in the identified area, compared to 65.4 for the U.S. as a whole."]
[null,null,null,"Households"]
[null,null,null,"2021 Wealth Index",null,null,null,null,null,null,null,null,null,null,null,null,null,null,null,null,null,null,136]
[null,null,null,"2000 Households",null,null,null,null,null,null,null,null,null,null,null,null,null,null,null,null,null,null,165028]
[null,null,null,"2010 Households",null,null,null,null,null,null,null,null,null,null,null,null,null,null,null,null,null,null,252097]
[null,null,null,"2021 Total Households",null,null,null,null,null,null,null,null,null,null,null,null,null,null,null,null,null,null,338227]
[null,null,null,"2026 Total Households",null,null,null,null,null,null,null,null,null,null,null,null,null,null,null,null,null,null,382325]
[null,null,null,"2000-2010 Annual Rate",null,null,null,null,null,null,null,null,null,null,null,null,null,null,null,null,null,null,4.33]
[null,null,null,"2010-2021 Annual Rate",null,null,null,null,null,null,null,null,null,null,null,null,null,null,null,null,null,null,2.65]
[null,null,null,"2021-2026 Annual Rate",null,null,null,null,null,null,null,null,null,null,null,null,null,null,null,null,null,null,2.48]
[null,null,null,"2021  Average Household Size",null,null,null,null,null,null,null,null,null,null,null,null,null,null,null,null,null,null,2.74]
[null,null,null,"The household count in this area has changed from 252,097 in 2010 to 338,227 in the current year, a change of 2.65% annually.  The five-year projection of households is 382,325, a change of 2.48% annually from the current year total.  Average household size is currently 2.74, compared to 2.71 in the year 2010. The number of families in the current year is 239,049 in the specified area. "]
[]
[null,"Data Note: Income is expressed in current dollars.  Housing Affordability Index and Percent of Income for Mortgage calculations are only available for areas with 50 or more owner-occupied housing units. \nSource: U.S. Census Bureau, Census 2010 Summary File 1. Esri forecasts for 2021 and 2026. Esri converted Census 2000 data into 2010 geography.\n\n"]
[]
[]
[null,null,null,null,null,"August 16, 2021"]
[]
[null,null,"©2021 Esri",null,null,null,null,null,null,null,null,null,null,null,null,null,null,null,null,null,null,null,null,"Page 1 of 2"]
[]
[null,null,null,null,null,null,"Executive Summary"]
[]
[null,null,null,null,null,null,null,"Plano/Allen Office Submarket REIS",null,null,null,null,null,null,null,null,null,"Prepared by Esri"]
[]
[]
[]
[]
[]
[null,null,null,"Mortgage Income"]
[null,null,null,"2021 Percent of Income for Mortgage",null,null,null,null,null,null,null,null,null,null,null,null,null,null,null,null,null,null,15.8]
[null,null,null,"Median Household Income"]
[null,null,null,"2021 Median Household Income",null,null,null,null,null,null,null,null,null,null,null,null,null,null,null,null,null,null,95059]
[null,null,null,"2026 Median Household Income",null,null,null,null,null,null,null,null,null,null,null,null,null,null,null,null,null,null,102188]
[null,null,null,"2021-2026 Annual Rate",null,null,null,null,null,null,null,null,null,null,null,null,null,null,null,null,null,null,1.46]
[null,null,null,"Average Household Income"]
[]
[null,null,null,"2021 Average Household Income",null,null,null,null,null,null,null,null,null,null,null,null,null,null,null,null,null,null,123806]
[null,null,null,"2026 Average Household Income",null,null,null,null,null,null,null,null,null,null,null,null,null,null,null,null,null,null,134347]
[null,null,null,"2021-2026 Annual Rate",null,null,null,null,null,null,null,null,null,null,null,null,null,null,null,null,null,null,1.65]
[null,null,null,"Per Capita Income"]
[]
[null,null,null,"2021 Per Capita Income",null,null,null,null,null,null,null,null,null,null,null,null,null,null,null,null,null,45143]
[null,null,null,"2026 Per Capita Income",null,null,null,null,null,null,null,null,null,null,null,null,null,null,null,null,null,48817]
[null,null,null,"2021-2026 Annual Rate",null,null,null,null,null,null,null,null,null,null,null,null,null,null,null,null,null,1.58]
[null,null,null,"Households by Income"]
[]
[null,null,null,"Current median  household income is $95,059 in the area, compared to $64,730 for all U.S. households. Median household income is projected to be $102,188 in five years, compared to $72,932 for all U.S. households\n\nCurrent average household income is $123,806 in this area, compared to $90,054 for all U.S. households.  Average household income is projected to be $134,347 in five years, compared to $103,679 for all U.S. households\n\nCurrent per capita income is $45,143 in the area, compared to the U.S. per capita income of $34,136.  The per capita income is projected to be $48,817 in five years, compared to $39,378 for all U.S. households\n     "]
[null,null,null,"Housing"]
[]
[null,null,null,"2021 Housing Affordability Index",null,null,null,null,null,null,null,null,null,null,null,null,null,null,null,null,124]
[null,null,null,"2000 Total Housing Units",null,null,null,null,null,null,null,null,null,null,null,null,null,null,null,null,176682]
[null,null,null,"2000 Owner Occupied Housing Units\n",null,null,null,null,null,null,null,null,null,null,null,null,null,null,null,null,111235]
[null,null,null,"2000 Renter Occupied Housing Units\n",null,null,null,null,null,null,null,null,null,null,null,null,null,null,null,null,53793]
[null,null,null,"2000 Vacant Housing Units\n",null,null,null,null,null,null,null,null,null,null,null,null,null,null,null,null,11654]
[null,null,null,"2010 Total Housing Units\n",null,null,null,null,null,null,null,null,null,null,null,null,null,null,null,null,266553]
[null,null,null,"2010 Owner Occupied Housing Units\n",null,null,null,null,null,null,null,null,null,null,null,null,null,null,null,null,167477]
[null,null,null,"2010 Renter Occupied Housing Units\n",null,null,null,null,null,null,null,null,null,null,null,null,null,null,null,null,84620]
[null,null,null,"2010 Vacant Housing Units\n",null,null,null,null,null,null,null,null,null,null,null,null,null,null,null,null,14456]
[null,null,null,"2021 Total Housing Units\n",null,null,null,null,null,null,null,null,null,null,null,null,null,null,null,null,355579]
[null,null,null,"2021 Owner Occupied Housing Units\n",null,null,null,null,null,null,null,null,null,null,null,null,null,null,null,null,204046]
[null,null,null,"2021 Renter Occupied Housing Units\n",null,null,null,null,null,null,null,null,null,null,null,null,null,null,null,null,134182]
[null,null,null,"2021 Vacant Housing Units\n",null,null,null,null,null,null,null,null,null,null,null,null,null,null,null,null,17352]
[null,null,null,"2026 Total Housing Units\n",null,null,null,null,null,null,null,null,null,null,null,null,null,null,null,null,401709]
[null,null,null,"2026 Owner Occupied Housing Units\n",null,null,null,null,null,null,null,null,null,null,null,null,null,null,null,null,229079]
[null,null,null,"2026 Renter Occupied Housing Units\n",null,null,null,null,null,null,null,null,null,null,null,null,null,null,null,null,153246]
[null,null,null,"2026 Vacant Housing Units\n",null,null,null,null,null,null,null,null,null,null,null,null,null,null,null,null,19384]
[null,null,null,"Currently, 57.4% of the 355,579 housing units in the area are owner occupied; 37.7%, renter occupied; and 4.9% are vacant.  Currently, in the U.S.,  57.3% of the housing units in the area are owner occupied; 31.2% are renter occupied; and 11.5% are vacant.  In 2010, there were 266,553 housing units in the area - 62.8% owner occupied, 31.7% renter occupied, and 5.4% vacant.  The annual rate of change in housing units since 2010 is 13.66%. Median home value in the area is $357,873, compared to a median home value of $264,021 for the U.S. In five years, median value is projected to change by 1.00% annually to $376,148.  "]
[]
[]
[null,"Data Note: Income is expressed in current dollars.  Housing Affordability Index and Percent of Income for Mortgage calculations are only available for areas with 50 or more owner-occupied housing units. \nSource: U.S. Census Bureau, Census 2010 Summary File 1. Esri forecasts for 2021 and 2026. Esri converted Census 2000 data into 2010 geography.\n\n"]
[]
[]
[null,null,null,null,null,"August 16, 2021"]
[]
[null,null,"©2021 Esri",null,null,null,null,null,null,null,null,null,null,null,null,null,null,null,null,null,null,null,null,"Page 2 of 2"]

{"sheet":"Gap Analysis","index":4,"n_rows":25,"n_cols":5,"rows_kept":25,"cut":false,"hidden":false,"merged":[[1,1,1,4],[0,1,0,4]]}
[null,"CCIM Office Gap Analysis"]
[null,{"$f":"'Data Input'!B6:C6","v":"Plano-Allen Office Submarket"}]
[null,"Forecast Period:",{"$f":"'Data Input'!C15","v":12},"Months"]
[]
[null,"Current Market Conditions",null,null,{"$f":"'Data Input'!H3","v":"2021-08-16T11:03:13.290"}]
[null,"Current Office Employment",null,null,{"$f":"'Data Input'!H19","v":128349.16083654392}]
[null,"Office Space per Employee (RSF)",null,null,{"$f":"E8/E6","v":187.61322507333352}]
[null,"Current Office Demand (RSF)",null,null,{"$f":"'Data Input'!C9-'Data Input'!C10","v":24080000}]
[null,"Current Office Supply (RSF)",null,null,{"$f":"'Data Input'!C9","v":32958000}]
[null,"Current Office Gap (RSF)",null,null,{"$f":"E8-E9","v":-8878000}]
[null,"Current Occupancy Rate",null,null,{"$f":"1-'Data Input'!C10/'Data Input'!C9","v":0.73062685842587538}]
[]
[null,"Forecast Market Conditions",null,null,{"$f":"'Data Input'!H3+('Data Input'!C15*30.25)","v":"2022-08-14T11:03:13.290"}]
[null,"Forecast Office Employment",null,null,{"$f":"'Data Input'!C19","v":131624.36943260726}]
[null,"Office Space per Employee (RSF)",null,null,{"$f":"E16/E14","v":187.61322507333352}]
[null,"Forecast Office Demand (RSF)",null,null,{"$f":"E14*(E8/E6)","v":24694472.447495345}]
[null,"Forecast Office Supply (RSF)",null,null,{"$f":"'Data Input'!C9+'Data Input'!C11","v":33367000}]
[null,"Forecast Office Gap (RSF)",null,null,{"$f":"E16-E17","v":-8672527.552504655}]
[null,"Forecast Occupancy Rate",null,null,{"$f":"IF(E18<0,1+E18/E17,1)","v":0.74008668587212956}]
[]
[null,"Forecast Market Stabilization"]
[null,"Targeted Stabilized Occupancy Rate",null,null,{"$f":"1-'Data Input'!C12","v":0.8}]
[null,"Forecast Annual Absorption (RSF)",null,null,{"$f":"(E16-E8)/('Data Input'!C15/12)","v":614472.44749534503}]
[null,"Additional Months to Reach Stabilized Occupancy",null,null,{"$f":"IF(E22>E19,(((E22-E19)*E17)/E23)*12,0)","v":39.040856474264601}]
[null,"Forecast Stabilization Date",null,null,{"$f":"IF(E24>0,E13+(E24*30.25),\"Not Applicable\")","v":"2025-11-07T10:42:55.771"}]